Workbook

Sheet MonsterPowerUpConfig
A1: ID | B1: HeroLevel | C1: jingjie1 | D1: jingjie2 | E1: jingjie3 | I1: HPFactor | J1: ATKFactor | K1: DEFFactor | L1: MPFactor | M1: HudunFactor | N1: defK | O1: GongfaLv | P1: GongfaStar | Q1: FabaoLv | R1: FabaoStar | S1: LinggenUp
A2: int | B2: int | C2: int | D2: int | E2: int | I2: float | J2: float | K2: float | L2: float | M2: float | N2: int | O2: int | P2: int | Q2: int | R2: int | S2: float
A4: ID | B4: 玩家修为境界（等级） | C4: 大境界ID | D4: 中境界ID | E4: 小境界ID | F4: 境界名称1 | G4: 境界名称2 | H4: 境界名称3 | I4: 生命倍率 | J4: 攻击倍率 | K4: 防御倍率 | L4: 法力倍率 | M4: 护盾倍率 | N4: 防御系数K | O4: 功法等级 | P4: 功法星级 | Q4: 法宝等级 | R4: 法宝星级 | S4: 灵根成长率 100=100%
A5: 1 | B5: 1 | C5: 1 | D5: 1 | E5: =H5 -> 1 | F5: 筑基期 | G5: 前 | H5: 1 | I5: =[1]主表!$K3*20 -> 20.06666667 | J5: =[1]主表!$M3 -> 1.01 | K5: =[1]主表!$L3 -> 1.01 | L5: 1 | M5: =[1]主表!$N3 -> 0 | N5: =[1]主表!$F3 -> 100 | O5: 1 | P5: 1 | Q5: 1 | R5: 1 | S5: 100
A6: 2 | B6: 2 | C6: 1 | D6: 1 | E6: =H6 -> 2 | F6: 筑基期 | G6: 前 | H6: 2 | I6: =[1]主表!$K4*20 -> 20.94672 | J6: =[1]主表!$M4 -> 1.0404 | K6: =[1]主表!$L4 -> 1.0404 | L6: 1 | M6: =[1]主表!$N4 -> 0 | N6: =[1]主表!$F4 -> 102 | O6: 1 | P6: 1 | Q6: 1 | R6: 1 | S6: 100.2
A7: 3 | B7: 3 | C7: 1 | D7: 1 | E7: 3 | F7: 筑基期 | G7: 前 | H7: 3 | I7: =[1]主表!$K5*20 -> 21.63824 | J7: =[1]主表!$M5 -> 1.0712 | K7: =[1]主表!$L5 -> 1.0712 | L7: 1 | M7: =[1]主表!$N5 -> 0 | N7: =[1]主表!$F5 -> 104 | O7: 1 | P7: 1 | Q7: 1 | R7: 1 | S7: 100.4
A8: 4 | B8: 4 | C8: 1 | D8: 1 | E8: 4 | F8: 筑基期 | G8: 前 | H8: 4 | I8: =[1]主表!$K6*20 -> 22.34197333 | J8: =[1]主表!$M6 -> 1.1024 | K8: =[1]主表!$L6 -> 1.1024 | L8: 1 | M8: =[1]主表!$N6 -> 0 | N8: =[1]主表!$F6 -> 106 | O8: 1 | P8: 1 | Q8: 1 | R8: 1 | S8: 100.6
A9: 5 | B9: 5 | C9: 1 | D9: 1 | E9: 5 | F9: 筑基期 | G9: 前 | H9: 5 | I9: =[1]主表!$K7*20 -> 23.058 | J9: =[1]主表!$M7 -> 1.134 | K9: =[1]主表!$L7 -> 1.134 | L9: 1 | M9: =[1]主表!$N7 -> 0 | N9: =[1]主表!$F7 -> 108 | O9: 1 | P9: 1 | Q9: 1 | R9: 1 | S9: 100.8
A10: 6 | B10: 6 | C10: 1 | D10: 1 | E10: 6 | F10: 筑基期 | G10: 前 | H10: 6 | I10: =[1]主表!$K8*20 -> 23.93197277 | J10: =[1]主表!$M8 -> 1.17313592 | K10: =[1]主表!$L8 -> 1.17313592 | L10: 1 | M10: =[1]主表!$N8 -> 0 | N10: =[1]主表!$F8 -> 111 | O10: 2 | P10: 1 | Q10: 1 | R10: 1 | S10: 101
A11: 7 | B11: 7 | C11: 1 | D11: 1 | E11: 7 | F11: 筑基期 | G11: 前 | H11: 7 | I11: =[1]主表!$K9*20 -> 24.82746691 | J11: =[1]主表!$M9 -> 1.213068416 | K11: =[1]主表!$L9 -> 1.213068416 | L11: 1 | M11: =[1]主表!$N9 -> 0 | N11: =[1]主表!$F9 -> 113 | O11: 2 | P11: 1 | Q11: 1 | R11: 1 | S11: 101.2
A12: 8 | B12: 8 | C12: 1 | D12: 1 | E12: 8 | F12: 筑基期 | G12: 前 | H12: 8 | I12: =[1]主表!$K10*20 -> 25.74479255 | J12: =[1]主表!$M10 -> 1.253804832 | K12: =[1]主表!$L10 -> 1.253804832 | L12: 1 | M12: =[1]主表!$N10 -> 0 | N12: =[1]主表!$F10 -> 116 | O12: 2 | P12: 1 | Q12: 1 | R12: 1 | S12: 101.4
A13: 9 | B13: 9 | C13: 1 | D13: 1 | E13: 9 | F13: 筑基期 | G13: 前 | H13: 9 | I13: =[1]主表!$K11*20 -> 26.68426175 | J13: =[1]主表!$M11 -> 1.295352512 | K13: =[1]主表!$L11 -> 1.295352512 | L13: 1 | M13: =[1]主表!$N11 -> 0 | N13: =[1]主表!$F11 -> 119 | O13: 2 | P13: 1 | Q13: 1 | R13: 1 | S13: 101.6
A14: 10 | B14: 10 | C14: 1 | D14: 1 | E14: 10 | F14: 筑基期 | G14: 前 | H14: 10 | I14: =[1]主表!$K12*20 -> 28.58334747 | J14: =[1]主表!$M12 -> 1.3830652 | K14: =[1]主表!$L12 -> 1.3830652 | L14: 1 | M14: =[1]主表!$N12 -> 0 | N14: =[1]主表!$F12 -> 126 | O14: 2 | P14: 1 | Q14: 1 | R14: 1 | S14: 101.8
A15: 11 | B15: 11 | C15: 1 | D15: 2 | E15: 1 | F15: 筑基期 | G15: 中 | H15: 1 | I15: =[1]主表!$K13*20 -> 29.58525186 | J15: =[1]主表!$M13 -> 1.426941408 | K15: =[1]主表!$L13 -> 1.426941408 | L15: 1 | M15: =[1]主表!$N13 -> 0 | N15: =[1]主表!$F13 -> 129 | O15: 3 | P15: 1 | Q15: =Q5+1 -> 2 | R15: 1 | S15: 102
A16: 12 | B16: 12 | C16: 1 | D16: 2 | E16: 2 | F16: 筑基期 | G16: 中 | H16: 2 | I16: =[1]主表!$K14*20 -> 30.61044081 | J16: =[1]主表!$M14 -> 1.471655808 | K16: =[1]主表!$L14 -> 1.471655808 | L16: 1 | M16: =[1]主表!$N14 -> 0 | N16: =[1]主表!$F14 -> 131 | O16: 3 | P16: 1 | Q16: =Q6+1 -> 2 | R16: 1 | S16: 102.2
A17: 13 | B17: 13 | C17: 1 | D17: 2 | E17: 3 | F17: 筑基期 | G17: 中 | H17: 3 | I17: =[1]主表!$K15*20 -> 31.65923519 | J17: =[1]主表!$M15 -> 1.517215744 | K17: =[1]主表!$L15 -> 1.517215744 | L17: 1 | M17: =[1]主表!$N15 -> 0 | N17: =[1]主表!$F15 -> 134 | O17: 3 | P17: 1 | Q17: 2 | R17: 1 | S17: 102.4
A18: 14 | B18: 14 | C18: 1 | D18: 2 | E18: 4 | F18: 筑基期 | G18: 中 | H18: 4 | I18: =[1]主表!$K16*20 -> 32.73195786 | J18: =[1]主表!$M16 -> 1.56362856 | K18: =[1]主表!$L16 -> 1.56362856 | L18: 1 | M18: =[1]主表!$N16 -> 0 | N18: =[1]主表!$F16 -> 137 | O18: 3 | P18: 1 | Q18: 2 | R18: 1 | S18: 102.6
A19: 15 | B19: 15 | C19: 1 | D19: 2 | E19: 5 | F19: 筑基期 | G19: 中 | H19: 5 | I19: =[1]主表!$K17*20 -> 33.8289336 | J19: =[1]主表!$M17 -> 1.6109016 | K19: =[1]主表!$L17 -> 1.6109016 | L19: 1 | M19: =[1]主表!$N17 -> 0 | N19: =[1]主表!$F17 -> 140 | O19: 3 | P19: 1 | Q19: 2 | R19: 1 | S19: 102.8
A20: 16 | B20: 16 | C20: 1 | D20: 2 | E20: 6 | F20: 筑基期 | G20: 中 | H20: 6 | I20: =[1]主表!$K18*20 -> 34.95048918 | J20: =[1]主表!$M18 -> 1.659042208 | K20: =[1]主表!$L18 -> 1.659042208 | L20: 1 | M20: =[1]主表!$N18 -> 0 | N20: =[1]主表!$F18 -> 143 | O20: 4 | P20: 1 | Q20: 2 | R20: 1 | S20: 103
A21: 17 | B21: 17 | C21: 1 | D21: 2 | E21: 7 | F21: 筑基期 | G21: 中 | H21: 7 | I21: =[1]主表!$K19*20 -> 36.09695332 | J21: =[1]主表!$M19 -> 1.708057728 | K21: =[1]主表!$L19 -> 1.708057728 | L21: 1 | M21: =[1]主表!$N19 -> 0 | N21: =[1]主表!$F19 -> 146 | O21: 4 | P21: 1 | Q21: 2 | R21: 1 | S21: 103.2
A22: 18 | B22: 18 | C22: 1 | D22: 2 | E22: 8 | F22: 筑基期 | G22: 中 | H22: 8 | I22: =[1]主表!$K20*20 -> 37.26865668 | J22: =[1]主表!$M20 -> 1.757955504 | K22: =[1]主表!$L20 -> 1.757955504 | L22: 1 | M22: =[1]主表!$N20 -> 0 | N22: =[1]主表!$F20 -> 149 | O22: 4 | P22: 1 | Q22: 2 | R22: 1 | S22: 103.4
A23: 19 | B23: 19 | C23: 1 | D23: 2 | E23: 9 | F23: 筑基期 | G23: 中 | H23: 9 | I23: =[1]主表!$K21*20 -> 38.46593191 | J23: =[1]主表!$M21 -> 1.80874288 | K23: =[1]主表!$L21 -> 1.80874288 | L23: 1 | M23: =[1]主表!$N21 -> 0 | N23: =[1]主表!$F21 -> 152 | O23: 4 | P23: 1 | Q23: 2 | R23: 1 | S23: 103.6
A24: 20 | B24: 20 | C24: 1 | D24: 2 | E24: 10 | F24: 筑基期 | G24: 中 | H24: 10 | I24: =[1]主表!$K22*20 -> 41.92512 | J24: =[1]主表!$M22 -> 1.96524 | K24: =[1]主表!$L22 -> 1.96524 | L24: 1 | M24: =[1]主表!$N22 -> 0 | N24: =[1]主表!$F22 -> 164 | O24: 4 | P24: 1 | Q24: 2 | R24: 1 | S24: 103.8
A25: 21 | B25: 21 | C25: 1 | D25: 3 | E25: 1 | F25: 筑基期 | G25: 后 | H25: 1 | I25: =[1]主表!$K23*20 -> 43.21290153 | J25: =[1]主表!$M23 -> 2.019294464 | K25: =[1]主表!$L23 -> 2.019294464 | L25: 1 | M25: =[1]主表!$N23 -> 0 | N25: =[1]主表!$F23 -> 167 | O25: 5 | P25: 1 | Q25: 3 | R25: 1 | S25: 104
A26: 22 | B26: 22 | C26: 1 | D26: 3 | E26: 2 | F26: 筑基期 | G26: 后 | H26: 2 | I26: =[1]主表!$K24*20 -> 44.52767022 | J26: =[1]主表!$M24 -> 2.074270352 | K26: =[1]主表!$L24 -> 2.074270352 | L26: 1 | M26: =[1]主表!$N24 -> 0 | N26: =[1]主表!$F24 -> 170 | O26: 5 | P26: 1 | Q26: 3 | R26: 1 | S26: 104.2
A27: 23 | B27: 23 | C27: 1 | D27: 3 | E27: 3 | F27: 筑基期 | G27: 后 | H27: 3 | I27: =[1]主表!$K25*20 -> 46.45784246 | J27: =[1]主表!$M25 -> 2.157484944 | K27: =[1]主表!$L25 -> 2.157484944 | L27: 1 | M27: =[1]主表!$N25 -> 0 | N27: =[1]主表!$F25 -> 175 | O27: 5 | P27: 1 | Q27: 3 | R27: 1 | S27: 104.4
A28: 24 | B28: 24 | C28: 1 | D28: 3 | E28: 4 | F28: 筑基期 | G28: 后 | H28: 4 | I28: =[1]主表!$K26*20 -> 47.83750963 | J28: =[1]主表!$M26 -> 2.21469952 | K28: =[1]主表!$L26 -> 2.21469952 | L28: 1 | M28: =[1]主表!$N26 -> 0 | N28: =[1]主表!$F26 -> 179 | O28: 5 | P28: 1 | Q28: 3 | R28: 1 | S28: 104.6
A29: 25 | B29: 25 | C29: 1 | D29: 3 | E29: 5 | F29: 筑基期 | G29: 后 | H29: 5 | I29: =[1]主表!$K27*20 -> 49.2453 | J29: =[1]主表!$M27 -> 2.27286 | K29: =[1]主表!$L27 -> 2.27286 | L29: 1 | M29: =[1]主表!$N27 -> 0 | N29: =[1]主表!$F27 -> 182 | O29: 5 | P29: 1 | Q29: 3 | R29: 1 | S29: 104.8
A30: 26 | B30: 26 | C30: 1 | D30: 3 | E30: 6 | F30: 筑基期 | G30: 后 | H30: 6 | I30: =[1]主表!$K28*20 -> 51.29963019 | J30: =[1]主表!$M28 -> 2.360412432 | K30: =[1]主表!$L28 -> 2.360412432 | L30: 1 | M30: =[1]主表!$N28 -> 0 | N30: =[1]主表!$F28 -> 187 | O30: 6 | P30: 1 | Q30: 3 | R30: 1 | S30: 105
A31: 27 | B31: 27 | C31: 1 | D31: 3 | E31: 7 | F31: 筑基期 | G31: 后 | H31: 7 | I31: =[1]主表!$K29*20 -> 52.77492031 | J31: =[1]主表!$M29 -> 2.420867904 | K31: =[1]主表!$L29 -> 2.420867904 | L31: 1 | M31: =[1]主表!$N29 -> 0 | N31: =[1]主表!$F29 -> 191 | O31: 6 | P31: 1 | Q31: 3 | R31: 1 | S31: 105.2
A32: 28 | B32: 28 | C32: 1 | D32: 3 | E32: 8 | F32: 筑基期 | G32: 后 | H32: 8 | I32: =[1]主表!$K30*20 -> 54.27949022 | J32: =[1]主表!$M30 -> 2.48229376 | K32: =[1]主表!$L30 -> 2.48229376 | L32: 1 | M32: =[1]主表!$N30 -> 0 | N32: =[1]主表!$F30 -> 194 | O32: 6 | P32: 1 | Q32: 3 | R32: 1 | S32: 105.4
A33: 29 | B33: 29 | C33: 1 | D33: 3 | E33: 9 | F33: 筑基期 | G33: 后 | H33: 9 | I33: =[1]主表!$K31*20 -> 56.46269153 | J33: =[1]主表!$M31 -> 2.574286848 | K33: =[1]主表!$L31 -> 2.574286848 | L33: 1 | M33: =[1]主表!$N31 -> 0 | N33: =[1]主表!$F31 -> 200 | O33: 6 | P33: 1 | Q33: 3 | R33: 1 | S33: 105.6
A34: 30 | B34: 30 | C34: 1 | D34: 3 | E34: 10 | F34: 筑基期 | G34: 后 | H34: 10 | I34: =[1]主表!$K32*20 -> 64.632568 | J34: =[1]主表!$M32 -> 2.937844 | K34: =[1]主表!$L32 -> 2.937844 | L34: 1 | M34: =[1]主表!$N32 -> 0 | N34: =[1]主表!$F32 -> 226 | O34: 6 | P34: 1 | Q34: 3 | R34: 1 | S34: 105.8
A35: 31 | B35: 31 | C35: 2 | D35: 4 | E35: 1 | F35: 金丹期 | G35: 前 | H35: 1 | I35: =[1]主表!$K33*20 -> 67.01413643 | J35: =[1]主表!$M33 -> 3.0368944 | K35: =[1]主表!$L33 -> 3.0368944 | L35: 1 | M35: =[1]主表!$N33 -> 0 | N35: =[1]主表!$F33 -> 232 | O35: 7 | P35: 1 | Q35: 4 | R35: 1 | S35: 106
A36: 32 | B36: 32 | C36: 2 | D36: 4 | E36: 2 | F36: 金丹期 | G36: 前 | H36: 2 | I36: =[1]主表!$K34*20 -> 69.44904975 | J36: =[1]主表!$M34 -> 3.137758272 | K36: =[1]主表!$L34 -> 3.137758272 | L36: 1 | M36: =[1]主表!$N34 -> 0 | N36: =[1]主表!$F34 -> 238 | O36: 7 | P36: 1 | Q36: 4 | R36: 1 | S36: 106.2
A37: 33 | B37: 33 | C37: 2 | D37: 4 | E37: 3 | F37: 金丹期 | G37: 前 | H37: 3 | I37: =[1]主表!$K35*20 -> 71.24628524 | J37: =[1]主表!$M35 -> 3.209292128 | K37: =[1]主表!$L35 -> 3.209292128 | L37: 1 | M37: =[1]主表!$N35 -> 0 | N37: =[1]主表!$F35 -> 241 | O37: 7 | P37: 1 | Q37: 4 | R37: 1 | S37: 106.4
A38: 34 | B38: 34 | C38: 2 | D38: 4 | E38: 4 | F38: 金丹期 | G38: 前 | H38: 4 | I38: =[1]主表!$K36*20 -> 73.77901283 | J38: =[1]主表!$M36 -> 3.31342872 | K38: =[1]主表!$L36 -> 3.31342872 | L38: 1 | M38: =[1]主表!$N36 -> 0 | N38: =[1]主表!$F36 -> 247 | O38: 7 | P38: 1 | Q38: 4 | R38: 1 | S38: 106.6
A39: 35 | B39: 35 | C39: 2 | D39: 4 | E39: 5 | F39: 金丹期 | G39: 前 | H39: 5 | I39: =[1]主表!$K37*20 -> 76.3670556 | J39: =[1]主表!$M37 -> 3.4194204 | K39: =[1]主表!$L37 -> 3.4194204 | L39: 1 | M39: =[1]主表!$N37 -> 0 | N39: =[1]主表!$F37 -> 253 | O39: 7 | P39: 1 | Q39: 4 | R39: 1 | S39: 106.8
A40: 36 | B40: 36 | C40: 2 | D40: 4 | E40: 6 | F40: 金丹期 | G40: 前 | H40: 6 | I40: =[1]主表!$K38*20 -> 78.28624097 | J40: =[1]主表!$M38 -> 3.494921472 | K40: =[1]主表!$L38 -> 3.494921472 | L40: 1 | M40: =[1]主表!$N38 -> 0 | N40: =[1]主表!$F38 -> 257 | O40: 8 | P40: 1 | Q40: 4 | R40: 1 | S40: 107
A41: 37 | B41: 37 | C41: 2 | D41: 4 | E41: 7 | F41: 金丹期 | G41: 前 | H41: 7 | I41: =[1]主表!$K39*20 -> 80.97574754 | J41: =[1]主表!$M39 -> 3.60426176 | K41: =[1]主表!$L39 -> 3.60426176 | L41: 1 | M41: =[1]主表!$N39 -> 0 | N41: =[1]主表!$F39 -> 263 | O41: 8 | P41: 1 | Q41: 4 | R41: 1 | S41: 107.2
A42: 38 | B42: 38 | C42: 2 | D42: 4 | E42: 8 | F42: 金丹期 | G42: 前 | H42: 8 | I42: =[1]主表!$K40*20 -> 83.72257188 | J42: =[1]主表!$M40 -> 3.715498752 | K42: =[1]主表!$L40 -> 3.715498752 | L42: 1 | M42: =[1]主表!$N40 -> 0 | N42: =[1]主表!$F40 -> 269 | O42: 8 | P42: 1 | Q42: 4 | R42: 1 | S42: 107.4
A43: 39 | B43: 39 | C43: 2 | D43: 4 | E43: 9 | F43: 金丹期 | G43: 前 | H43: 9 | I43: =[1]主表!$K41*20 -> 86.52742527 | J43: =[1]主表!$M41 -> 3.828647136 | K43: =[1]主表!$L41 -> 3.828647136 | L43: 1 | M43: =[1]主表!$N41 -> 0 | N43: =[1]主表!$F41 -> 275 | O43: 8 | P43: 1 | Q43: 4 | R43: 1 | S43: 107.6
A44: 40 | B44: 40 | C44: 2 | D44: 4 | E44: 10 | F44: 金丹期 | G44: 前 | H44: 10 | I44: =[1]主表!$K42*20 -> 93.24408427 | J44: =[1]主表!$M42 -> 4.1137096 | K44: =[1]主表!$L42 -> 4.1137096 | L44: 1 | M44: =[1]主表!$N42 -> 0 | N44: =[1]主表!$F42 -> 294 | O44: 8 | P44: 1 | Q44: 4 | R44: 1 | S44: 107.8
A45: 41 | B45: 41 | C45: 2 | D45: 5 | E45: 1 | F45: 金丹期 | G45: 中 | H45: 1 | I45: =[1]主表!$K43*20 -> 96.22569771 | J45: =[1]主表!$M43 -> 4.232801952 | K45: =[1]主表!$L43 -> 4.232801952 | L45: 1 | M45: =[1]主表!$N43 -> 0 | N45: =[1]主表!$F43 -> 300 | O45: 9 | P45: 1 | Q45: 5 | R45: 1 | S45: 108
A46: 42 | B46: 42 | C46: 2 | D46: 5 | E46: 2 | F46: 金丹期 | G46: 中 | H46: 2 | I46: =[1]主表!$K44*20 -> 99.2680536 | J46: =[1]主表!$M44 -> 4.353862 | K46: =[1]主表!$L44 -> 4.353862 | L46: 1 | M46: =[1]主表!$N44 -> 0 | N46: =[1]主表!$F44 -> 307 | O46: 9 | P46: 1 | Q46: 5 | R46: 1 | S46: 108.2
A47: 43 | B47: 43 | C47: 2 | D47: 5 | E47: 3 | F47: 金丹期 | G47: 中 | H47: 3 | I47: =[1]主表!$K45*20 -> 102.3718813 | J47: =[1]主表!$M45 -> 4.476904432 | K47: =[1]主表!$L45 -> 4.476904432 | L47: 1 | M47: =[1]主表!$N45 -> 0 | N47: =[1]主表!$F45 -> 313 | O47: 9 | P47: 1 | Q47: 5 | R47: 1 | S47: 108.4
A48: 44 | B48: 44 | C48: 2 | D48: 5 | E48: 4 | F48: 金丹期 | G48: 中 | H48: 4 | I48: =[1]主表!$K46*20 -> 106.3560376 | J48: =[1]主表!$M46 -> 4.63761792 | K48: =[1]主表!$L46 -> 4.63761792 | L48: 1 | M48: =[1]主表!$N46 -> 0 | N48: =[1]主表!$F46 -> 322 | O48: 9 | P48: 1 | Q48: 5 | R48: 1 | S48: 108.6
A49: 45 | B49: 45 | C49: 2 | D49: 5 | E49: 5 | F49: 金丹期 | G49: 中 | H49: 5 | I49: =[1]主表!$K47*20 -> 109.5971712 | J49: =[1]主表!$M47 -> 4.7650944 | K49: =[1]主表!$L47 -> 4.7650944 | L49: 1 | M49: =[1]主表!$N47 -> 0 | N49: =[1]主表!$F47 -> 329 | O49: 9 | P49: 1 | Q49: 5 | R49: 1 | S49: 108.8
A50: 46 | B50: 46 | C50: 2 | D50: 5 | E50: 6 | F50: 金丹期 | G50: 中 | H50: 6 | I50: =[1]主表!$K48*20 -> 112.9021015 | J50: =[1]主表!$M48 -> 4.894599776 | K50: =[1]主表!$L48 -> 4.894599776 | L50: 1 | M50: =[1]主表!$N48 -> 0 | N50: =[1]主表!$F48 -> 335 | O50: 10 | P50: 1 | Q50: 5 | R50: 1 | S50: 109
A51: 47 | B51: 47 | C51: 2 | D51: 5 | E51: 7 | F51: 金丹期 | G51: 中 | H51: 7 | I51: =[1]主表!$K49*20 -> 116.2715741 | J51: =[1]主表!$M49 -> 5.026148736 | K51: =[1]主表!$L49 -> 5.026148736 | L51: 1 | M51: =[1]主表!$N49 -> 0 | N51: =[1]主表!$F49 -> 342 | O51: 10 | P51: 1 | Q51: 5 | R51: 1 | S51: 109.2
A52: 48 | B52: 48 | C52: 2 | D52: 5 | E52: 8 | F52: 金丹期 | G52: 中 | H52: 8 | I52: =[1]主表!$K50*20 -> 119.7063385 | J52: =[1]主表!$M50 -> 5.159755968 | K52: =[1]主表!$L50 -> 5.159755968 | L52: 1 | M52: =[1]主表!$N50 -> 0 | N52: =[1]主表!$F50 -> 349 | O52: 10 | P52: 1 | Q52: 5 | R52: 1 | S52: 109.4
A53: 49 | B53: 49 | C53: 2 | D53: 5 | E53: 9 | F53: 金丹期 | G53: 中 | H53: 9 | I53: =[1]主表!$K51*20 -> 124.087199 | J53: =[1]主表!$M51 -> 5.333260704 | K53: =[1]主表!$L51 -> 5.333260704 | L53: 1 | M53: =[1]主表!$N51 -> 0 | N53: =[1]主表!$F51 -> 358 | O53: 10 | P53: 1 | Q53: 5 | R53: 1 | S53: 109.6
A54: 50 | B54: 50 | C54: 2 | D54: 5 | E54: 10 | F54: 金丹期 | G54: 中 | H54: 10 | I54: =[1]主表!$K52*20 -> 133.917 | J54: =[1]主表!$M52 -> 5.7393 | K54: =[1]主表!$L52 -> 5.7393 | L54: 1 | M54: =[1]主表!$N52 -> 0 | N54: =[1]主表!$F52 -> 383 | O54: 10 | P54: 1 | Q54: 5 | R54: 1 | S54: 109.8
A55: 51 | B55: 51 | C55: 2 | D55: 6 | E55: 1 | F55: 金丹期 | G55: 后 | H55: 1 | I55: =[1]主表!$K53*20 -> 137.6549321 | J55: =[1]主表!$M53 -> 5.882689408 | K55: =[1]主表!$L53 -> 5.882689408 | L55: 1 | M55: =[1]主表!$N53 -> 0 | N55: =[1]主表!$F53 -> 390 | O55: 11 | P55: 2 | Q55: 6 | R55: 2 | S55: 110
A56: 52 | B56: 52 | C56: 2 | D56: 6 | E56: 2 | F56: 金丹期 | G56: 后 | H56: 2 | I56: =[1]主表!$K54*20 -> 142.3807072 | J56: =[1]主表!$M54 -> 6.06735968 | K56: =[1]主表!$L54 -> 6.06735968 | L56: 1 | M56: =[1]主表!$N54 -> 0 | N56: =[1]主表!$F54 -> 399 | O56: 11 | P56: 2 | Q56: 6 | R56: 2 | S56: 110.2
A57: 53 | B57: 53 | C57: 2 | D57: 6 | E57: 3 | F57: 金丹期 | G57: 后 | H57: 3 | I57: =[1]主表!$K55*20 -> 146.2710048 | J57: =[1]主表!$M55 -> 6.215481792 | K57: =[1]主表!$L55 -> 6.215481792 | L57: 1 | M57: =[1]主表!$N55 -> 0 | N57: =[1]主表!$F55 -> 406 | O57: 11 | P57: 2 | Q57: 6 | R57: 2 | S57: 110.4
A58: 54 | B58: 54 | C58: 2 | D58: 6 | E58: 4 | F58: 金丹期 | G58: 后 | H58: 4 | I58: =[1]主表!$K56*20 -> 151.1770839 | J58: =[1]主表!$M56 -> 6.40580864 | K58: =[1]主表!$L56 -> 6.40580864 | L58: 1 | M58: =[1]主表!$N56 -> 0 | N58: =[1]主表!$F56 -> 416 | O58: 11 | P58: 2 | Q58: 6 | R58: 2 | S58: 110.6
A59: 55 | B59: 55 | C59: 2 | D59: 6 | E59: 5 | F59: 金丹期 | G59: 后 | H59: 5 | I59: =[1]主表!$K57*20 -> 156.1814927 | J59: =[1]主表!$M57 -> 6.599218 | K59: =[1]主表!$L57 -> 6.599218 | L59: 1 | M59: =[1]主表!$N57 -> 0 | N59: =[1]主表!$F57 -> 426 | O59: 11 | P59: 2 | Q59: 6 | R59: 2 | S59: 110.8
A60: 56 | B60: 56 | C60: 2 | D60: 6 | E60: 6 | F60: 金丹期 | G60: 后 | H60: 6 | I60: =[1]主表!$K58*20 -> 160.3137719 | J60: =[1]主表!$M58 -> 6.75479376 | K60: =[1]主表!$L58 -> 6.75479376 | L60: 1 | M60: =[1]主表!$N58 -> 0 | N60: =[1]主表!$F58 -> 433 | O60: 12 | P60: 2 | Q60: 6 | R60: 2 | S60: 111
A61: 57 | B61: 57 | C61: 2 | D61: 6 | E61: 7 | F61: 金丹期 | G61: 后 | H61: 7 | I61: =[1]主表!$K59*20 -> 165.5047156 | J61: =[1]主表!$M59 -> 6.953979648 | K61: =[1]主表!$L59 -> 6.953979648 | L61: 1 | M61: =[1]主表!$N59 -> 0 | N61: =[1]主表!$F59 -> 443 | O61: 12 | P61: 2 | Q61: 6 | R61: 2 | S61: 111.2
A62: 58 | B62: 58 | C62: 2 | D62: 6 | E62: 8 | F62: 金丹期 | G62: 后 | H62: 8 | I62: =[1]主表!$K60*20 -> 170.7973058 | J62: =[1]主表!$M60 -> 7.156311696 | K62: =[1]主表!$L60 -> 7.156311696 | L62: 1 | M62: =[1]主表!$N60 -> 0 | N62: =[1]主表!$F60 -> 453 | O62: 12 | P62: 2 | Q62: 6 | R62: 2 | S62: 111.4
A63: 59 | B63: 59 | C63: 2 | D63: 6 | E63: 9 | F63: 金丹期 | G63: 后 | H63: 9 | I63: =[1]主表!$K61*20 -> 176.192699 | J63: =[1]主表!$M61 -> 7.361811936 | K63: =[1]主表!$L61 -> 7.361811936 | L63: 1 | M63: =[1]主表!$N61 -> 0 | N63: =[1]主表!$F61 -> 463 | O63: 12 | P63: 2 | Q63: 6 | R63: 2 | S63: 111.6
A64: 60 | B64: 60 | C64: 2 | D64: 6 | E64: 10 | F64: 金丹期 | G64: 后 | H64: 10 | I64: =[1]主表!$K62*20 -> 201.1957248 | J64: =[1]主表!$M62 -> 8.3831552 | K64: =[1]主表!$L62 -> 8.3831552 | L64: 1 | M64: =[1]主表!$N62 -> 0 | N64: =[1]主表!$F62 -> 524 | O64: 12 | P64: 2 | Q64: 6 | R64: 2 | S64: 111.8
A65: 61 | B65: 61 | C65: 3 | D65: 7 | E65: 1 | F65: 元婴期 | G65: 前 | H65: 1 | I65: =[1]主表!$K63*20 -> 208.2519344 | J65: =[1]主表!$M63 -> 8.653127467 | K65: =[1]主表!$L63 -> 8.653127467 | L65: 1 | M65: =[1]主表!$N63 -> 0 | N65: =[1]主表!$F63 -> 537 | O65: 13 | P65: 2 | Q65: 7 | R65: 2 | S65: 112
A66: 62 | B66: 62 | C66: 3 | D66: 7 | E66: 2 | F66: 元婴期 | G66: 前 | H66: 2 | I66: =[1]主表!$K64*20 -> 214.397345 | J66: =[1]主表!$M64 -> 8.883867888 | K66: =[1]主表!$L64 -> 8.883867888 | L66: 1 | M66: =[1]主表!$N64 -> 0 | N66: =[1]主表!$F64 -> 548 | O66: 13 | P66: 2 | Q66: 7 | R66: 2 | S66: 112.2
A67: 63 | B67: 63 | C67: 3 | D67: 7 | E67: 3 | F67: 元婴期 | G67: 前 | H67: 3 | I67: =[1]主表!$K65*20 -> 220.659788 | J67: =[1]主表!$M65 -> 9.118173056 | K67: =[1]主表!$L65 -> 9.118173056 | L67: 1 | M67: =[1]主表!$N65 -> 0 | N67: =[1]主表!$F65 -> 559 | O67: 13 | P67: 2 | Q67: 7 | R67: 2 | S67: 112.4
A68: 64 | B68: 64 | C68: 3 | D68: 7 | E68: 4 | F68: 元婴期 | G68: 前 | H68: 4 | I68: =[1]主表!$K66*20 -> 228.1269109 | J68: =[1]主表!$M66 -> 9.40083424 | K68: =[1]主表!$L66 -> 9.40083424 | L68: 1 | M68: =[1]主表!$N66 -> 0 | N68: =[1]主表!$F66 -> 573 | O68: 13 | P68: 2 | Q68: 7 | R68: 2 | S68: 112.6
A69: 65 | B69: 65 | C69: 3 | D69: 7 | E69: 5 | F69: 元婴期 | G69: 前 | H69: 5 | I69: =[1]主表!$K67*20 -> 234.6427028 | J69: =[1]主表!$M67 -> 9.6428508 | K69: =[1]主表!$L67 -> 9.6428508 | L69: 1 | M69: =[1]主表!$N67 -> 0 | N69: =[1]主表!$F67 -> 584 | O69: 13 | P69: 2 | Q69: 7 | R69: 2 | S69: 112.8
A70: 66 | B70: 66 | C70: 3 | D70: 7 | E70: =H70 -> 6 | F70: 元婴期 | G70: 前 | H70: 6 | I70: =[1]主表!$K68*20 -> 242.9299281 | J70: =[1]主表!$M68 -> 9.956144595 | K70: =[1]主表!$L68 -> 9.956144595 | L70: 1 | M70: =[1]主表!$N68 -> 0 | N70: =[1]主表!$F68 -> 600 | O70: 14 | P70: 2 | Q70: 7 | R70: 2 | S70: 113
A71: 67 | B71: 67 | C71: 3 | D71: 7 | E71: 7 | F71: 元婴期 | G71: 前 | H71: 7 | I71: =[1]主表!$K69*20 -> 250.262436 | J71: =[1]主表!$M69 -> 10.22870992 | K71: =[1]主表!$L69 -> 10.22870992 | L71: 1 | M71: =[1]主表!$N69 -> 0 | N71: =[1]主表!$F69 -> 612 | O71: 14 | P71: 2 | Q71: 7 | R71: 2 | S71: 113.2
A72: 68 | B72: 68 | C72: 3 | D72: 7 | E72: 8 | F72: 元婴期 | G72: 前 | H72: 8 | I72: =[1]主表!$K70*20 -> 258.8994361 | J72: =[1]主表!$M70 -> 10.55296614 | K72: =[1]主表!$L70 -> 10.55296614 | L72: 1 | M72: =[1]主表!$N70 -> 0 | N72: =[1]主表!$F70 -> 628 | O72: 14 | P72: 2 | Q72: 7 | R72: 2 | S72: 113.4
A73: 69 | B73: 69 | C73: 3 | D73: 7 | E73: 9 | F73: 元婴期 | G73: 前 | H73: 9 | I73: =[1]主表!$K71*20 -> 267.7237885 | J73: =[1]主表!$M71 -> 10.88308083 | K73: =[1]主表!$L71 -> 10.88308083 | L73: 1 | M73: =[1]主表!$N71 -> 0 | N73: =[1]主表!$F71 -> 644 | O73: 14 | P73: 2 | Q73: 7 | R73: 2 | S73: 113.6
A74: 70 | B74: 70 | C74: 3 | D74: 7 | E74: 10 | F74: 元婴期 | G74: 前 | H74: 10 | I74: =[1]主表!$K72*20 -> 289.8590508 | J74: =[1]主表!$M72 -> 11.7510426 | K74: =[1]主表!$L72 -> 11.7510426 | L74: 1 | M74: =[1]主表!$N72 -> 0 | N74: =[1]主表!$F72 -> 691 | O74: 14 | P74: 2 | Q74: 7 | R74: 2 | S74: 113.8
A75: 71 | B75: 71 | C75: 3 | D75: 8 | E75: 1 | F75: 元婴期 | G75: 中 | H75: 1 | I75: =[1]主表!$K73*20 -> 299.2719267 | J75: =[1]主表!$M73 -> 12.09994313 | K75: =[1]主表!$L73 -> 12.09994313 | L75: 1 | M75: =[1]主表!$N73 -> 0 | N75: =[1]主表!$F73 -> 708 | O75: 15 | P75: 2 | Q75: 8 | R75: 2 | S75: 114
A76: 72 | B76: 72 | C76: 3 | D76: 8 | E76: 2 | F76: 元婴期 | G76: 中 | H76: 2 | I76: =[1]主表!$K74*20 -> 308.8813154 | J76: =[1]主表!$M74 -> 12.45489175 | K76: =[1]主表!$L74 -> 12.45489175 | L76: 1 | M76: =[1]主表!$N74 -> 0 | N76: =[1]主表!$F74 -> 724 | O76: 15 | P76: 2 | Q76: 8 | R76: 2 | S76: 114.2
A77: 73 | B77: 73 | C77: 3 | D77: 8 | E77: 3 | F77: 元婴期 | G77: 中 | H77: 3 | I77: =[1]主表!$K75*20 -> 318.6896304 | J77: =[1]主表!$M75 -> 12.81593688 | K77: =[1]主表!$L75 -> 12.81593688 | L77: 1 | M77: =[1]主表!$N75 -> 0 | N77: =[1]主表!$F75 -> 741 | O77: 15 | P77: 2 | Q77: 8 | R77: 2 | S77: 114.4
A78: 74 | B78: 74 | C78: 3 | D78: 8 | E78: 4 | F78: 元婴期 | G78: 中 | H78: 4 | I78: =[1]主表!$K76*20 -> 328.6992983 | J78: =[1]主表!$M76 -> 13.18312694 | K78: =[1]主表!$L76 -> 13.18312694 | L78: 1 | M78: =[1]主表!$N76 -> 0 | N78: =[1]主表!$F76 -> 758 | O78: 15 | P78: 2 | Q78: 8 | R78: 2 | S78: 114.6
A79: 75 | B79: 75 | C79: 3 | D79: 8 | E79: 5 | F79: 元婴期 | G79: 中 | H79: 5 | I79: =[1]主表!$K77*20 -> 338.9127583 | J79: =[1]主表!$M77 -> 13.55651033 | K79: =[1]主表!$L77 -> 13.55651033 | L79: 1 | M79: =[1]主表!$N77 -> 0 | N79: =[1]主表!$F77 -> 775 | O79: 15 | P79: 2 | Q79: 8 | R79: 2 | S79: 114.8
A80: 76 | B80: 76 | C80: 3 | D80: 8 | E80: 6 | F80: 元婴期 | G80: 中 | H80: 6 | I80: =[1]主表!$K78*20 -> 350.6408242 | J80: =[1]主表!$M78 -> 13.98833075 | K80: =[1]主表!$L78 -> 13.98833075 | L80: 1 | M80: =[1]主表!$N78 -> 0 | N80: =[1]主表!$F78 -> 795 | O80: 16 | P80: 2 | Q80: =Q70+1 -> 8 | R80: 2 | S80: 115
A81: 77 | B81: 77 | C81: 3 | D81: 8 | E81: 7 | F81: 元婴期 | G81: 中 | H81: 7 | I81: =[1]主表!$K79*20 -> 361.2891461 | J81: =[1]主表!$M79 -> 14.37489971 | K81: =[1]主表!$L79 -> 14.37489971 | L81: 1 | M81: =[1]主表!$N79 -> 0 | N81: =[1]主表!$F79 -> 812 | O81: 16 | P81: 2 | Q81: 8 | R81: 2 | S81: 115.2
A82: 78 | B82: 78 | C82: 3 | D82: 8 | E82: 8 | F82: 元婴期 | G82: 中 | H82: 8 | I82: =[1]主表!$K80*20 -> 372.1488447 | J82: =[1]主表!$M80 -> 14.7678113 | K82: =[1]主表!$L80 -> 14.7678113 | L82: 1 | M82: =[1]主表!$N80 -> 0 | N82: =[1]主表!$F80 -> 830 | O82: 16 | P82: 2 | Q82: 8 | R82: 2 | S82: 115.4
A83: 79 | B83: 79 | C83: 3 | D83: 8 | E83: 9 | F83: 元婴期 | G83: 中 | H83: 9 | I83: =[1]主表!$K81*20 -> 384.5910632 | J83: =[1]主表!$M81 -> 15.22128218 | K83: =[1]主表!$L81 -> 15.22128218 | L83: 1 | M83: =[1]主表!$N81 -> 0 | N83: =[1]主表!$F81 -> 850 | O83: 16 | P83: 2 | Q83: 8 | R83: 2 | S83: 115.6
A84: 80 | B84: 80 | C84: 3 | D84: 8 | E84: 10 | F84: 元婴期 | G84: 中 | H84: 10 | I84: =[1]主表!$K82*20 -> 416.7384 | J84: =[1]主表!$M82 -> 16.4502 | K84: =[1]主表!$L82 -> 16.4502 | L84: 1 | M84: =[1]主表!$N82 -> 0 | N84: =[1]主表!$F82 -> 914 | O84: 16 | P84: 2 | Q84: 8 | R84: 2 | S84: 115.8
A85: 81 | B85: 81 | C85: 3 | D85: 9 | E85: 1 | F85: 元婴期 | G85: 后 | H85: 1 | I85: =[1]主表!$K83*20 -> 428.5779156 | J85: =[1]主表!$M83 -> 16.87314628 | K85: =[1]主表!$L83 -> 16.87314628 | L85: 1 | M85: =[1]主表!$N83 -> 0 | N85: =[1]主表!$F83 -> 932 | O85: 17 | P85: 2 | Q85: 9 | R85: 2 | S85: 116
A86: 82 | B86: 82 | C86: 3 | D86: 9 | E86: 2 | F86: 元婴期 | G86: 后 | H86: 2 | I86: =[1]主表!$K84*20 -> 442.0725811 | J86: =[1]主表!$M84 -> 17.35887098 | K86: =[1]主表!$L84 -> 17.35887098 | L86: 1 | M86: =[1]主表!$N84 -> 0 | N86: =[1]主表!$F84 -> 954 | O86: 17 | P86: 2 | Q86: 9 | R86: 2 | S86: 116.2
A87: 83 | B87: 83 | C87: 3 | D87: 9 | E87: 3 | F87: 元婴期 | G87: 后 | H87: 3 | I87: =[1]主表!$K85*20 -> 457.2881109 | J87: =[1]主表!$M85 -> 17.90945604 | K87: =[1]主表!$L85 -> 17.90945604 | L87: 1 | M87: =[1]主表!$N85 -> 0 | N87: =[1]主表!$F85 -> 979 | O87: 17 | P87: 2 | Q87: 9 | R87: 2 | S87: 116.4
A88: 84 | B88: 84 | C88: 3 | D88: 9 | E88: 4 | F88: 元婴期 | G88: 后 | H88: 4 | I88: =[1]主表!$K86*20 -> 471.3454851 | J88: =[1]主表!$M86 -> 18.41193301 | K88: =[1]主表!$L86 -> 18.41193301 | L88: 1 | M88: =[1]主表!$N86 -> 0 | N88: =[1]主表!$F86 -> 1001 | O88: 17 | P88: 2 | Q88: 9 | R88: 2 | S88: 116.6
A89: 85 | B89: 85 | C89: 3 | D89: 9 | E89: 5 | F89: 元婴期 | G89: 后 | H89: 5 | I89: =[1]主表!$K87*20 -> 485.6785267 | J89: =[1]主表!$M87 -> 18.92254 | K89: =[1]主表!$L87 -> 18.92254 | L89: 1 | M89: =[1]主表!$N87 -> 0 | N89: =[1]主表!$F87 -> 1023 | O89: 17 | P89: 2 | Q89: 9 | R89: 2 | S89: 116.8
A90: 86 | B90: 86 | C90: 3 | D90: 9 | E90: 6 | F90: 元婴期 | G90: 后 | H90: 6 | I90: =[1]主表!$K88*20 -> 500.2904188 | J90: =[1]主表!$M88 -> 19.44133752 | K90: =[1]主表!$L88 -> 19.44133752 | L90: 1 | M90: =[1]主表!$N88 -> 0 | N90: =[1]主表!$F88 -> 1045 | O90: 18 | P90: 2 | Q90: 9 | R90: 2 | S90: 117
A91: 87 | B91: 87 | C91: 3 | D91: 9 | E91: 7 | F91: 元婴期 | G91: 后 | H91: 7 | I91: =[1]主表!$K89*20 -> 516.722225 | J91: =[1]主表!$M89 -> 20.02799322 | K91: =[1]主表!$L89 -> 20.02799322 | L91: 1 | M91: =[1]主表!$N89 -> 0 | N91: =[1]主表!$F89 -> 1071 | O91: 18 | P91: 2 | Q91: 9 | R91: 2 | S91: 117.2
A92: 88 | B92: 88 | C92: 3 | D92: 9 | E92: 8 | F92: 元婴期 | G92: 后 | H92: 8 | I92: =[1]主表!$K90*20 -> 531.9234623 | J92: =[1]主表!$M90 -> 20.56405138 | K92: =[1]主表!$L90 -> 20.56405138 | L92: 1 | M92: =[1]主表!$N90 -> 0 | N92: =[1]主表!$F90 -> 1094 | O92: 18 | P92: 2 | Q92: 9 | R92: 2 | S92: 117.4
A93: 89 | B93: 89 | C93: 3 | D93: 9 | E93: 9 | F93: 元婴期 | G93: 后 | H93: 9 | I93: =[1]主表!$K91*20 -> 548.9955145 | J93: =[1]主表!$M91 -> 21.16949285 | K93: =[1]主表!$L91 -> 21.16949285 | L93: 1 | M93: =[1]主表!$N91 -> 0 | N93: =[1]主表!$F91 -> 1120 | O93: 18 | P93: 2 | Q93: 9 | R93: 2 | S93: 117.6
A94: 90 | B94: 90 | C94: 3 | D94: 9 | E94: 10 | F94: 元婴期 | G94: 后 | H94: 10 | I94: =[1]主表!$K92*20 -> 630.5861588 | J94: =[1]主表!$M92 -> 24.2533138 | K94: =[1]主表!$L92 -> 24.2533138 | L94: 1 | M94: =[1]主表!$N92 -> 0 | N94: =[1]主表!$F92 -> 1276 | O94: 18 | P94: 2 | Q94: 9 | R94: 2 | S94: 117.8
A95: 91 | B95: 91 | C95: 4 | D95: 10 | E95: 1 | F95: 化神期 | G95: 前 | H95: 1 | I95: =[1]主表!$K93*20 -> 649.2406476 | J95: =[1]主表!$M93 -> 24.90693022 | K95: =[1]主表!$L93 -> 24.90693022 | L95: 1 | M95: =[1]主表!$N93 -> 0 | N95: =[1]主表!$F93 -> 1304 | O95: 19 | P95: 2 | Q95: 10 | R95: 2 | S95: 118
A96: 92 | B96: 92 | C96: 4 | D96: 10 | E96: 2 | F96: 化神期 | G96: 前 | H96: 2 | I96: =[1]主表!$K94*20 -> 669.8976753 | J96: =[1]主表!$M94 -> 25.63383962 | K96: =[1]主表!$L94 -> 25.63383962 | L96: 1 | M96: =[1]主表!$N94 -> 0 | N96: =[1]主表!$F94 -> 1335 | O96: 19 | P96: 2 | Q96: 10 | R96: 2 | S96: 118.2
A97: 93 | B97: 93 | C97: 4 | D97: 10 | E97: 3 | F97: 化神期 | G97: 前 | H97: 3 | I97: =[1]主表!$K95*20 -> 689.2842128 | J97: =[1]主表!$M95 -> 26.30855774 | K97: =[1]主表!$L95 -> 26.30855774 | L97: 1 | M97: =[1]主表!$N95 -> 0 | N97: =[1]主表!$F95 -> 1363 | O97: 19 | P97: 2 | Q97: 10 | R97: 2 | S97: 118.4
A98: 94 | B98: 94 | C98: 4 | D98: 10 | E98: 4 | F98: 化神期 | G98: 前 | H98: 4 | I98: =[1]主表!$K96*20 -> 710.7276309 | J98: =[1]主表!$M96 -> 27.05815854 | K98: =[1]主表!$L96 -> 27.05815854 | L98: 1 | M98: =[1]主表!$N96 -> 0 | N98: =[1]主表!$F96 -> 1395 | O98: 19 | P98: 2 | Q98: 10 | R98: 2 | S98: 118.6
A99: 95 | B99: 95 | C99: 4 | D99: 10 | E99: 5 | F99: 化神期 | G99: 前 | H99: 5 | I99: =[1]主表!$K97*20 -> 732.5825156 | J99: =[1]主表!$M97 -> 27.8195892 | K99: =[1]主表!$L97 -> 27.8195892 | L99: 1 | M99: =[1]主表!$N97 -> 0 | N99: =[1]主表!$F97 -> 1427 | O99: 19 | P99: 2 | Q99: 10 | R99: 2 | S99: 118.8
A100: 96 | B100: 96 | C100: 4 | D100: 10 | E100: 6 | F100: 化神期 | G100: 前 | H100: 6 | I100: =[1]主表!$K98*20 -> 754.8534697 | J100: =[1]主表!$M98 -> 28.59293446 | K100: =[1]主表!$L98 -> 28.59293446 | L100: 1 | M100: =[1]主表!$N98 -> 0 | N100: =[1]主表!$F98 -> 1459 | O100: 20 | P100: 2 | Q100: 10 | R100: 2 | S100: 119
A101: 97 | B101: 97 | C101: 4 | D101: 10 | E101: 7 | F101: 化神期 | G101: 前 | H101: 7 | I101: =[1]主表!$K99*20 -> 777.5451186 | J101: =[1]主表!$M99 -> 29.37827904 | K101: =[1]主表!$L99 -> 29.37827904 | L101: 1 | M101: =[1]主表!$N99 -> 0 | N101: =[1]主表!$F99 -> 1491 | O101: 20 | P101: 2 | Q101: 10 | R101: 2 | S101: 119.2
A102: 98 | B102: 98 | C102: 4 | D102: 10 | E102: 8 | F102: 化神期 | G102: 前 | H102: 8 | I102: =[1]主表!$K100*20 -> 800.6621102 | J102: =[1]主表!$M100 -> 30.17570767 | K102: =[1]主表!$L100 -> 30.17570767 | L102: 1 | M102: =[1]主表!$N100 -> 0 | N102: =[1]主表!$F100 -> 1524 | O102: 20 | P102: 2 | Q102: 10 | R102: 2 | S102: 119.4
A103: 99 | B103: 99 | C103: 4 | D103: 10 | E103: 9 | F103: 化神期 | G103: 前 | H103: 9 | I103: =[1]主表!$K101*20 -> 826.0245538 | J103: =[1]主表!$M101 -> 31.05355465 | K103: =[1]主表!$L101 -> 31.05355465 | L103: 1 | M103: =[1]主表!$N101 -> 0 | N103: =[1]主表!$F101 -> 1560 | O103: 20 | P103: 2 | Q103: 10 | R103: 2 | S103: 119.6
A104: 100 | B104: 100 | C104: 4 | D104: 10 | E104: 10 | F104: 化神期 | G104: 前 | H104: 10 | I104: =[1]主表!$K102*20 -> 892.3482667 | J104: =[1]主表!$M102 -> 33.46306 | K104: =[1]主表!$L102 -> 33.46306 | L104: 1 | M104: =[1]主表!$N102 -> 0 | N104: =[1]主表!$F102 -> 1673 | O104: 20 | P104: 2 | Q104: 10 | R104: 2 | S104: 119.8
A105: 101 | B105: 101 | C105: 4 | D105: 11 | E105: 1 | F105: 化神期 | G105: 中 | H105: 1 | I105: =[1]主表!$K103*20 -> 914.6525842 | J105: =[1]主表!$M103 -> 34.21393707 | K105: =[1]主表!$L103 -> 34.21393707 | L105: 1 | M105: =[1]主表!$N103 -> 0 | N105: =[1]主表!$F103 -> 1711 | O105: 21 | P105: 3 | Q105: 11 | R105: 3 | S105: 120
A106: 102 | B106: 102 | C106: 4 | D106: 11 | E106: 2 | F106: 化神期 | G106: 中 | H106: 2 | I106: =[1]主表!$K104*20 -> 937.2300253 | J106: =[1]主表!$M104 -> 34.9712696 | K106: =[1]主表!$L104 -> 34.9712696 | L106: 1 | M106: =[1]主表!$N104 -> 0 | N106: =[1]主表!$F104 -> 1749 | O106: 21 | P106: 3 | Q106: 11 | R106: 3 | S106: 120.2
A107: 103 | B107: 103 | C107: 4 | D107: 11 | E107: 3 | F107: 化神期 | G107: 中 | H107: 3 | I107: =[1]主表!$K105*20 -> 960.0818809 | J107: =[1]主表!$M105 -> 35.7350576 | K107: =[1]主表!$L105 -> 35.7350576 | L107: 1 | M107: =[1]主表!$N105 -> 0 | N107: =[1]主表!$F105 -> 1787 | O107: 21 | P107: 3 | Q107: 11 | R107: 3 | S107: 120.4
A108: 104 | B108: 104 | C108: 4 | D108: 11 | E108: 4 | F108: 化神期 | G108: 中 | H108: 4 | I108: =[1]主表!$K106*20 -> 985.1112011 | J108: =[1]主表!$M106 -> 36.57591093 | K108: =[1]主表!$L106 -> 36.57591093 | L108: 1 | M108: =[1]主表!$N106 -> 0 | N108: =[1]主表!$F106 -> 1829 | O108: 21 | P108: 3 | Q108: 11 | R108: 3 | S108: 120.6
A109: 105 | B109: 105 | C109: 4 | D109: 11 | E109: 5 | F109: 化神期 | G109: 中 | H109: 5 | I109: =[1]主表!$K107*20 -> 1008.53136 | J109: =[1]主表!$M107 -> 37.35301333 | K109: =[1]主表!$L107 -> 37.35301333 | L109: 1 | M109: =[1]主表!$N107 -> 0 | N109: =[1]主表!$F107 -> 1868 | O109: 21 | P109: 3 | Q109: 11 | R109: 3 | S109: 120.8
A110: 106 | B110: 106 | C110: 4 | D110: 11 | E110: 6 | F110: 化神期 | G110: 中 | H110: 6 | I110: =[1]主表!$K108*20 -> 1034.162875 | J110: =[1]主表!$M108 -> 38.207988 | K110: =[1]主表!$L108 -> 38.207988 | L110: 1 | M110: =[1]主表!$N108 -> 0 | N110: =[1]主表!$F108 -> 1910 | O110: 22 | P110: 3 | Q110: 11 | R110: 3 | S110: 121
A111: 107 | B111: 107 | C111: 4 | D111: 11 | E111: 7 | F111: 化神期 | G111: 中 | H111: 7 | I111: =[1]主表!$K109*20 -> 1060.10544 | J111: =[1]主表!$M109 -> 39.07022507 | K111: =[1]主表!$L109 -> 39.07022507 | L111: 1 | M111: =[1]主表!$N109 -> 0 | N111: =[1]主表!$F109 -> 1954 | O111: 22 | P111: 3 | Q111: 11 | R111: 3 | S111: 121.2
A112: 108 | B112: 108 | C112: 4 | D112: 11 | E112: 8 | F112: 化神期 | G112: 中 | H112: 8 | I112: =[1]主表!$K110*20 -> 1084.396022 | J112: =[1]主表!$M110 -> 39.8675008 | K112: =[1]主表!$L110 -> 39.8675008 | L112: 1 | M112: =[1]主表!$N110 -> 0 | N112: =[1]主表!$F110 -> 1993 | O112: 22 | P112: 3 | Q112: 11 | R112: 3 | S112: 121.4
A113: 109 | B113: 109 | C113: 4 | D113: 11 | E113: 9 | F113: 化神期 | G113: 中 | H113: 9 | I113: =[1]主表!$K111*20 -> 1112.929529 | J113: =[1]主表!$M111 -> 40.8164864 | K113: =[1]主表!$L111 -> 40.8164864 | L113: 1 | M113: =[1]主表!$N111 -> 0 | N113: =[1]主表!$F111 -> 2041 | O113: 22 | P113: 3 | Q113: 11 | R113: 3 | S113: 121.6
A114: 110 | B114: 110 | C114: 4 | D114: 11 | E114: 10 | F114: 化神期 | G114: 中 | H114: 10 | I114: =[1]主表!$K112*20 -> 1195.706762 | J114: =[1]主表!$M112 -> 43.74536933 | K114: =[1]主表!$L112 -> 43.74536933 | L114: 1 | M114: =[1]主表!$N112 -> 0 | N114: =[1]主表!$F112 -> 2187 | O114: 22 | P114: 3 | Q114: 11 | R114: 3 | S114: 121.8
A115: 111 | B115: 111 | C115: 4 | D115: 12 | E115: 1 | F115: 化神期 | G115: 后 | H115: 1 | I115: =[1]主表!$K113*20 -> 1223.353914 | J115: =[1]主表!$M113 -> 44.64795307 | K115: =[1]主表!$L113 -> 44.64795307 | L115: 1 | M115: =[1]主表!$N113 -> 0 | N115: =[1]主表!$F113 -> 2232 | O115: 23 | P115: 3 | Q115: 12 | R115: 3 | S115: 122
A116: 112 | B116: 112 | C116: 4 | D116: 12 | E116: 2 | F116: 化神期 | G116: 后 | H116: 2 | I116: =[1]主表!$K114*20 -> 1253.348957 | J116: =[1]主表!$M114 -> 45.6316368 | K116: =[1]主表!$L114 -> 45.6316368 | L116: 1 | M116: =[1]主表!$N114 -> 0 | N116: =[1]主表!$F114 -> 2282 | O116: 23 | P116: 3 | Q116: 12 | R116: 3 | S116: 122.2
A117: 113 | B117: 113 | C117: 4 | D117: 12 | E117: 3 | F117: 化神期 | G117: 后 | H117: 3 | I117: =[1]主表!$K115*20 -> 1285.741438 | J117: =[1]主表!$M115 -> 46.69763093 | K117: =[1]主表!$L115 -> 46.69763093 | L117: 1 | M117: =[1]主表!$N115 -> 0 | N117: =[1]主表!$F115 -> 2335 | O117: 23 | P117: 3 | Q117: 12 | R117: 3 | S117: 122.4
A118: 114 | B118: 114 | C118: 4 | D118: 12 | E118: 4 | F118: 化神期 | G118: 后 | H118: 4 | I118: =[1]主表!$K116*20 -> 1316.460848 | J118: =[1]主表!$M116 -> 47.6978568 | K118: =[1]主表!$L116 -> 47.6978568 | L118: 1 | M118: =[1]主表!$N116 -> 0 | N118: =[1]主表!$F116 -> 2385 | O118: 23 | P118: 3 | Q118: 12 | R118: 3 | S118: 122.6
A119: 115 | B119: 115 | C119: 4 | D119: 12 | E119: 5 | F119: 化神期 | G119: 后 | H119: 5 | I119: =[1]主表!$K117*20 -> 1349.6132 | J119: =[1]主表!$M117 -> 48.7812 | K119: =[1]主表!$L117 -> 48.7812 | L119: 1 | M119: =[1]主表!$N117 -> 0 | N119: =[1]主表!$F117 -> 2439 | O119: 23 | P119: 3 | Q119: 12 | R119: 3 | S119: 122.8
A120: 116 | B120: 116 | C120: 4 | D120: 12 | E120: 6 | F120: 化神期 | G120: 后 | H120: 6 | I120: =[1]主表!$K118*20 -> 1381.063646 | J120: =[1]主表!$M118 -> 49.797968 | K120: =[1]主表!$L118 -> 49.797968 | L120: 1 | M120: =[1]主表!$N118 -> 0 | N120: =[1]主表!$F118 -> 2490 | O120: 24 | P120: 3 | Q120: 12 | R120: 3 | S120: 123
A121: 117 | B121: 117 | C121: 4 | D121: 12 | E121: 7 | F121: 化神期 | G121: 后 | H121: 7 | I121: =[1]主表!$K119*20 -> 1414.982755 | J121: =[1]主表!$M119 -> 50.89866027 | K121: =[1]主表!$L119 -> 50.89866027 | L121: 1 | M121: =[1]主表!$N119 -> 0 | N121: =[1]主表!$F119 -> 2545 | O121: 24 | P121: 3 | Q121: 12 | R121: 3 | S121: 123.2
A122: 118 | B122: 118 | C122: 4 | D122: 12 | E122: 8 | F122: 化神期 | G122: 后 | H122: 8 | I122: =[1]主表!$K120*20 -> 1449.295976 | J122: =[1]主表!$M120 -> 52.0082288 | K122: =[1]主表!$L120 -> 52.0082288 | L122: 1 | M122: =[1]主表!$N120 -> 0 | N122: =[1]主表!$F120 -> 2600 | O122: 24 | P122: 3 | Q122: 12 | R122: 3 | S122: 123.4
A123: 119 | B123: 119 | C123: 4 | D123: 12 | E123: 9 | F123: 化神期 | G123: 后 | H123: 9 | I123: =[1]主表!$K121*20 -> 1484.005083 | J123: =[1]主表!$M121 -> 53.1266736 | K123: =[1]主表!$L121 -> 53.1266736 | L123: 1 | M123: =[1]主表!$N121 -> 0 | N123: =[1]主表!$F121 -> 2656 | O123: 24 | P123: 3 | Q123: 12 | R123: 3 | S123: 123.6
A124: 120 | B124: 120 | C124: 4 | D124: 12 | E124: 10 | F124: 化神期 | G124: 后 | H124: 10 | I124: =[1]主表!$K122*20 -> 1693.896027 | J124: =[1]主表!$M122 -> 60.49628667 | K124: =[1]主表!$L122 -> 60.49628667 | L124: 1 | M124: =[1]主表!$N122 -> 0 | N124: =[1]主表!$F122 -> 3025 | O124: 24 | P124: 3 | Q124: 12 | R124: 3 | S124: 123.8
A125: 121 | B125: 121 | C125: 5 | D125: 13 | E125: 1 | F125: 炼虚期 | G125: 前 | H125: 1 | I125: =[1]主表!$K123*20 -> 1733.770238 | J125: =[1]主表!$M123 -> 61.7732864 | K125: =[1]主表!$L123 -> 61.7732864 | L125: 1 | M125: =[1]主表!$N123 -> 0 | N125: =[1]主表!$F123 -> 3089 | O125: 25 | P125: 3 | Q125: 13 | R125: 3 | S125: 124
A126: 122 | B126: 122 | C126: 5 | D126: 13 | E126: 2 | F126: 炼虚期 | G126: 前 | H126: 2 | I126: =[1]主表!$K124*20 -> 1774.066926 | J126: =[1]主表!$M124 -> 63.05925093 | K126: =[1]主表!$L124 -> 63.05925093 | L126: 1 | M126: =[1]主表!$N124 -> 0 | N126: =[1]主表!$F124 -> 3153 | O126: 25 | P126: 3 | Q126: 13 | R126: 3 | S126: 124.2
A127: 123 | B127: 123 | C127: 5 | D127: 13 | E127: 3 | F127: 炼虚期 | G127: 前 | H127: 3 | I127: =[1]主表!$K125*20 -> 1814.787884 | J127: =[1]主表!$M125 -> 64.35418027 | K127: =[1]主表!$L125 -> 64.35418027 | L127: 1 | M127: =[1]主表!$N125 -> 0 | N127: =[1]主表!$F125 -> 3218 | O127: 25 | P127: 3 | Q127: 13 | R127: 3 | S127: 124.4
A128: 124 | B128: 124 | C128: 5 | D128: 13 | E128: 4 | F128: 炼虚期 | G128: 前 | H128: 4 | I128: =[1]主表!$K126*20 -> 1858.152269 | J128: =[1]主表!$M126 -> 65.73651893 | K128: =[1]主表!$L126 -> 65.73651893 | L128: 1 | M128: =[1]主表!$N126 -> 0 | N128: =[1]主表!$F126 -> 3287 | O128: 25 | P128: 3 | Q128: 13 | R128: 3 | S128: 124.6
A129: 125 | B129: 125 | C129: 5 | D129: 13 | E129: 5 | F129: 炼虚期 | G129: 前 | H129: 5 | I129: =[1]主表!$K127*20 -> 1899.742142 | J129: =[1]主表!$M127 -> 67.04972267 | K129: =[1]主表!$L127 -> 67.04972267 | L129: 1 | M129: =[1]主表!$N127 -> 0 | N129: =[1]主表!$F127 -> 3352 | O129: 25 | P129: 3 | Q129: 13 | R129: 3 | S129: 124.8
A130: 126 | B130: 126 | C130: 5 | D130: 13 | E130: 6 | F130: 炼虚期 | G130: 前 | H130: 6 | I130: =[1]主表!$K128*20 -> 1944.633298 | J130: =[1]主表!$M128 -> 68.47300347 | K130: =[1]主表!$L128 -> 68.47300347 | L130: 1 | M130: =[1]主表!$N128 -> 0 | N130: =[1]主表!$F128 -> 3424 | O130: 26 | P130: 3 | Q130: 13 | R130: 3 | S130: 125
A131: 127 | B131: 127 | C131: 5 | D131: 13 | E131: 7 | F131: 炼虚期 | G131: 前 | H131: 7 | I131: =[1]主表!$K129*20 -> 1987.693578 | J131: =[1]主表!$M129 -> 69.82530133 | K131: =[1]主表!$L129 -> 69.82530133 | L131: 1 | M131: =[1]主表!$N129 -> 0 | N131: =[1]主表!$F129 -> 3491 | O131: 26 | P131: 3 | Q131: 13 | R131: 3 | S131: 125.2
A132: 128 | B132: 128 | C132: 5 | D132: 13 | E132: 8 | F132: 炼虚期 | G132: 前 | H132: 8 | I132: =[1]主表!$K130*20 -> 2031.156906 | J132: =[1]主表!$M130 -> 71.1854056 | K132: =[1]主表!$L130 -> 71.1854056 | L132: 1 | M132: =[1]主表!$N130 -> 0 | N132: =[1]主表!$F130 -> 3559 | O132: 26 | P132: 3 | Q132: 13 | R132: 3 | S132: 125.4
A133: 129 | B133: 129 | C133: 5 | D133: 13 | E133: 9 | F133: 炼虚期 | G133: 前 | H133: 9 | I133: =[1]主表!$K131*20 -> 2077.310115 | J133: =[1]主表!$M131 -> 72.6332208 | K133: =[1]主表!$L131 -> 72.6332208 | L133: 1 | M133: =[1]主表!$N131 -> 0 | N133: =[1]主表!$F131 -> 3632 | O133: 26 | P133: 3 | Q133: 13 | R133: 3 | S133: 125.6
A134: 130 | B134: 130 | C134: 5 | D134: 13 | E134: =H134 -> 10 | F134: 炼虚期 | G134: 前 | H134: 10 | I134: =[1]主表!$K132*20 -> 2227.332633 | J134: =[1]主表!$M132 -> 77.69765 | K134: =[1]主表!$L132 -> 77.69765 | L134: 1 | M134: =[1]主表!$N132 -> 0 | N134: =[1]主表!$F132 -> 3885 | O134: 26 | P134: 3 | Q134: 13 | R134: 3 | S134: 125.8
A135: 131 | B135: 131 | C135: 5 | D135: 14 | E135: 1 | F135: 炼虚期 | G135: 中 | H135: 1 | I135: =[1]主表!$K133*20 -> 2277.266118 | J135: =[1]主表!$M133 -> 79.25520133 | K135: =[1]主表!$L133 -> 79.25520133 | L135: 1 | M135: =[1]主表!$N133 -> 0 | N135: =[1]主表!$F133 -> 3963 | O135: 27 | P135: 3 | Q135: 14 | R135: 3 | S135: 126
A136: 132 | B136: 132 | C136: 5 | D136: 14 | E136: 2 | F136: 炼虚期 | G136: 中 | H136: 2 | I136: =[1]主表!$K134*20 -> 2327.664219 | J136: =[1]主表!$M134 -> 80.82167427 | K136: =[1]主表!$L134 -> 80.82167427 | L136: 1 | M136: =[1]主表!$N134 -> 0 | N136: =[1]主表!$F134 -> 4041 | O136: 27 | P136: 3 | Q136: 14 | R136: 3 | S136: 126.2
A137: 133 | B137: 133 | C137: 5 | D137: 14 | E137: 3 | F137: 炼虚期 | G137: 中 | H137: 3 | I137: =[1]主表!$K135*20 -> 2380.867489 | J137: =[1]主表!$M135 -> 82.47808853 | K137: =[1]主表!$L135 -> 82.47808853 | L137: 1 | M137: =[1]主表!$N135 -> 0 | N137: =[1]主表!$F135 -> 4124 | O137: 27 | P137: 3 | Q137: 14 | R137: 3 | S137: 126.4
A138: 134 | B138: 134 | C138: 5 | D138: 14 | E138: 4 | F138: 炼虚期 | G138: 中 | H138: 4 | I138: =[1]主表!$K136*20 -> 2432.213642 | J138: =[1]主表!$M136 -> 84.06268347 | K138: =[1]主表!$L136 -> 84.06268347 | L138: 1 | M138: =[1]主表!$N136 -> 0 | N138: =[1]主表!$F136 -> 4203 | O138: 27 | P138: 3 | Q138: 14 | R138: 3 | S138: 126.6
A139: 135 | B139: 135 | C139: 5 | D139: 14 | E139: 5 | F139: 炼虚期 | G139: 中 | H139: 5 | I139: =[1]主表!$K137*20 -> 2486.395543 | J139: =[1]主表!$M137 -> 85.73777733 | K139: =[1]主表!$L137 -> 85.73777733 | L139: 1 | M139: =[1]主表!$N137 -> 0 | N139: =[1]主表!$F137 -> 4287 | O139: 27 | P139: 3 | Q139: 14 | R139: 3 | S139: 126.8
A140: 136 | B140: 136 | C140: 5 | D140: 14 | E140: 6 | F140: 炼虚期 | G140: 中 | H140: 6 | I140: =[1]主表!$K138*20 -> 2543.455603 | J140: =[1]主表!$M138 -> 87.50420653 | K140: =[1]主表!$L138 -> 87.50420653 | L140: 1 | M140: =[1]主表!$N138 -> 0 | N140: =[1]主表!$F138 -> 4375 | O140: 28 | P140: 3 | Q140: 14 | R140: 3 | S140: 127
A141: 137 | B141: 137 | C141: 5 | D141: 14 | E141: 7 | F141: 炼虚期 | G141: 中 | H141: 7 | I141: =[1]主表!$K139*20 -> 2598.650729 | J141: =[1]主表!$M139 -> 89.1985376 | K141: =[1]主表!$L139 -> 89.1985376 | L141: 1 | M141: =[1]主表!$N139 -> 0 | N141: =[1]主表!$F139 -> 4460 | O141: 28 | P141: 3 | Q141: 14 | R141: 3 | S141: 127.2
A142: 138 | B142: 138 | C142: 5 | D142: 14 | E142: 8 | F142: 炼虚期 | G142: 中 | H142: 8 | I142: =[1]主表!$K140*20 -> 2656.755039 | J142: =[1]主表!$M140 -> 90.9847616 | K142: =[1]主表!$L140 -> 90.9847616 | L142: 1 | M142: =[1]主表!$N140 -> 0 | N142: =[1]主表!$F140 -> 4549 | O142: 28 | P142: 3 | Q142: 14 | R142: 3 | S142: 127.4
A143: 139 | B143: 139 | C143: 5 | D143: 14 | E143: 9 | F143: 炼虚期 | G143: 中 | H143: 9 | I143: =[1]主表!$K141*20 -> 2715.391256 | J143: =[1]主表!$M141 -> 92.7810224 | K143: =[1]主表!$L141 -> 92.7810224 | L143: 1 | M143: =[1]主表!$N141 -> 0 | N143: =[1]主表!$F141 -> 4639 | O143: 28 | P143: 3 | Q143: 14 | R143: 3 | S143: 127.6
A144: 140 | B144: 140 | C144: 5 | D144: 14 | E144: 10 | F144: 炼虚期 | G144: 中 | H144: 10 | I144: =[1]主表!$K142*20 -> 2910.85563 | J144: =[1]主表!$M142 -> 99.23371467 | K144: =[1]主表!$L142 -> 99.23371467 | L144: 1 | M144: =[1]主表!$N142 -> 0 | N144: =[1]主表!$F142 -> 4962 | O144: 28 | P144: 3 | Q144: =Q134+1 -> 14 | R144: 3 | S144: 127.8
A145: 141 | B145: 141 | C145: 5 | D145: 15 | E145: 1 | F145: 炼虚期 | G145: 后 | H145: 1 | I145: =[1]主表!$K143*20 -> 2976.225567 | J145: =[1]主表!$M143 -> 101.2321621 | K145: =[1]主表!$L143 -> 101.2321621 | L145: 1 | M145: =[1]主表!$N143 -> 0 | N145: =[1]主表!$F143 -> 5062 | O145: 29 | P145: 3 | Q145: 15 | R145: 3 | S145: 128
A146: 142 | B146: 142 | C146: 5 | D146: 15 | E146: 2 | F146: 炼虚期 | G146: 后 | H146: 2 | I146: =[1]主表!$K144*20 -> 3042.190575 | J146: =[1]主表!$M144 -> 103.2417616 | K146: =[1]主表!$L144 -> 103.2417616 | L146: 1 | M146: =[1]主表!$N144 -> 0 | N146: =[1]主表!$F144 -> 5162 | O146: 29 | P146: 3 | Q146: 15 | R146: 3 | S146: 128.2
A147: 143 | B147: 143 | C147: 5 | D147: 15 | E147: 3 | F147: 炼虚期 | G147: 后 | H147: 3 | I147: =[1]主表!$K145*20 -> 3108.752886 | J147: =[1]主表!$M145 -> 105.2625131 | K147: =[1]主表!$L145 -> 105.2625131 | L147: 1 | M147: =[1]主表!$N145 -> 0 | N147: =[1]主表!$F145 -> 5263 | O147: 29 | P147: 3 | Q147: 15 | R147: 3 | S147: 128.4
A148: 144 | B148: 144 | C148: 5 | D148: 15 | E148: 4 | F148: 炼虚期 | G148: 后 | H148: 4 | I148: =[1]主表!$K146*20 -> 3178.403691 | J148: =[1]主表!$M146 -> 107.3785031 | K148: =[1]主表!$L146 -> 107.3785031 | L148: 1 | M148: =[1]主表!$N146 -> 0 | N148: =[1]主表!$F146 -> 5369 | O148: 29 | P148: 3 | Q148: 15 | R148: 3 | S148: 128.6
A149: 145 | B149: 145 | C149: 5 | D149: 15 | E149: 5 | F149: 炼虚期 | G149: 后 | H149: 5 | I149: =[1]主表!$K147*20 -> 3248.684012 | J149: =[1]主表!$M147 -> 109.5062027 | K149: =[1]主表!$L147 -> 109.5062027 | L149: 1 | M149: =[1]主表!$N147 -> 0 | N149: =[1]主表!$F147 -> 5475 | O149: 29 | P149: 3 | Q149: 15 | R149: 3 | S149: 128.8
A150: 146 | B150: 146 | C150: 5 | D150: 15 | E150: 6 | F150: 炼虚期 | G150: 后 | H150: 6 | I150: =[1]主表!$K148*20 -> 3319.596193 | J150: =[1]主表!$M148 -> 111.6456119 | K150: =[1]主表!$L148 -> 111.6456119 | L150: 1 | M150: =[1]主表!$N148 -> 0 | N150: =[1]主表!$F148 -> 5582 | O150: 30 | P150: 3 | Q150: 15 | R150: 3 | S150: 129
A151: 147 | B151: 147 | C151: 5 | D151: 15 | E151: 7 | F151: 炼虚期 | G151: 后 | H151: 7 | I151: =[1]主表!$K149*20 -> 3393.673277 | J151: =[1]主表!$M149 -> 113.8816536 | K151: =[1]主表!$L149 -> 113.8816536 | L151: 1 | M151: =[1]主表!$N149 -> 0 | N151: =[1]主表!$F149 -> 5694 | O151: 30 | P151: 3 | Q151: 15 | R151: 3 | S151: 129.2
A152: 148 | B152: 148 | C152: 5 | D152: 15 | E152: 8 | F152: 炼虚期 | G152: 后 | H152: 8 | I152: =[1]主表!$K150*20 -> 3468.414881 | J152: =[1]主表!$M150 -> 116.1299625 | K152: =[1]主表!$L150 -> 116.1299625 | L152: 1 | M152: =[1]主表!$N150 -> 0 | N152: =[1]主表!$F150 -> 5806 | O152: 30 | P152: 3 | Q152: 15 | R152: 3 | S152: 129.4
A153: 149 | B153: 149 | C153: 5 | D153: 15 | E153: 9 | F153: 炼虚期 | G153: 后 | H153: 9 | I153: =[1]主表!$K151*20 -> 3546.382175 | J153: =[1]主表!$M151 -> 118.4760192 | K153: =[1]主表!$L151 -> 118.4760192 | L153: 1 | M153: =[1]主表!$N151 -> 0 | N153: =[1]主表!$F151 -> 5924 | O153: 30 | P153: 3 | Q153: 15 | R153: 3 | S153: 129.6
A154: 150 | B154: 150 | C154: 5 | D154: 15 | E154: 10 | F154: 炼虚期 | G154: 后 | H154: 10 | I154: =[1]主表!$K152*20 -> 4034.11904 | J154: =[1]主表!$M152 -> 134.4706347 | K154: =[1]主表!$L152 -> 134.4706347 | L154: 1 | M154: =[1]主表!$N152 -> 0 | N154: =[1]主表!$F152 -> 6724 | O154: 30 | P154: 3 | Q154: 15 | R154: 3 | S154: 129.8
A155: 151 | B155: 151 | C155: 6 | D155: 16 | E155: 1 | F155: 合体期 | G155: 前 | H155: 1 | I155: =[1]主表!$K153*20 -> 4123.486522 | J155: =[1]主表!$M153 -> 137.1447845 | K155: =[1]主表!$L153 -> 137.1447845 | L155: 1 | M155: =[1]主表!$N153 -> 0 | N155: =[1]主表!$F153 -> 6857 | O155: 31 | P155: 4 | Q155: 16 | R155: 4 | S155: 130
A156: 152 | B156: 152 | C156: 6 | D156: 16 | E156: 2 | F156: 合体期 | G156: 前 | H156: 2 | I156: =[1]主表!$K154*20 -> 4213.647418 | J156: =[1]主表!$M154 -> 139.833432 | K156: =[1]主表!$L154 -> 139.833432 | L156: 1 | M156: =[1]主表!$N154 -> 0 | N156: =[1]主表!$F154 -> 6992 | O156: 31 | P156: 4 | Q156: 16 | R156: 4 | S156: 130.2
A157: 153 | B157: 153 | C157: 6 | D157: 16 | E157: 3 | F157: 合体期 | G157: 前 | H157: 3 | I157: =[1]主表!$K155*20 -> 4307.219819 | J157: =[1]主表!$M155 -> 142.6231728 | K157: =[1]主表!$L155 -> 142.6231728 | L157: 1 | M157: =[1]主表!$N155 -> 0 | N157: =[1]主表!$F155 -> 7131 | O157: 31 | P157: 4 | Q157: 16 | R157: 4 | S157: 130.4
A158: 154 | B158: 154 | C158: 6 | D158: 16 | E158: 4 | F158: 合体期 | G158: 前 | H158: 4 | I158: =[1]主表!$K156*20 -> 4401.619856 | J158: =[1]主表!$M156 -> 145.4279688 | K158: =[1]主表!$L156 -> 145.4279688 | L158: 1 | M158: =[1]主表!$N156 -> 0 | N158: =[1]主表!$F156 -> 7271 | O158: 31 | P158: 4 | Q158: 16 | R158: 4 | S158: 130.6
A159: 155 | B159: 155 | C159: 6 | D159: 16 | E159: 5 | F159: 合体期 | G159: 前 | H159: 5 | I159: =[1]主表!$K157*20 -> 4499.494191 | J159: =[1]主表!$M157 -> 148.3349733 | K159: =[1]主表!$L157 -> 148.3349733 | L159: 1 | M159: =[1]主表!$N157 -> 0 | N159: =[1]主表!$F157 -> 7417 | O159: 31 | P159: 4 | Q159: 16 | R159: 4 | S159: 130.8
A160: 156 | B160: 156 | C160: 6 | D160: 16 | E160: 6 | F160: 合体期 | G160: 前 | H160: 6 | I160: =[1]主表!$K158*20 -> 4598.230756 | J160: =[1]主表!$M158 -> 151.2575907 | K160: =[1]主表!$L158 -> 151.2575907 | L160: 1 | M160: =[1]主表!$N158 -> 0 | N160: =[1]主表!$F158 -> 7563 | O160: 32 | P160: 4 | Q160: 16 | R160: 4 | S160: 131
A161: 157 | B161: 157 | C161: 6 | D161: 16 | E161: 7 | F161: 合体期 | G161: 前 | H161: 7 | I161: =[1]主表!$K159*20 -> 4697.832674 | J161: =[1]主表!$M159 -> 154.1958208 | K161: =[1]主表!$L159 -> 154.1958208 | L161: 1 | M161: =[1]主表!$N159 -> 0 | N161: =[1]主表!$F159 -> 7710 | O161: 32 | P161: 4 | Q161: 16 | R161: 4 | S161: 131.2
A162: 158 | B162: 158 | C162: 6 | D162: 16 | E162: 8 | F162: 合体期 | G162: 前 | H162: 8 | I162: =[1]主表!$K160*20 -> 4800.989686 | J162: =[1]主表!$M160 -> 157.2376535 | K162: =[1]主表!$L160 -> 157.2376535 | L162: 1 | M162: =[1]主表!$N160 -> 0 | N162: =[1]主表!$F160 -> 7862 | O162: 32 | P162: 4 | Q162: 16 | R162: 4 | S162: 131.4
A163: 159 | B163: 159 | C163: 6 | D163: 16 | E163: 9 | F163: 合体期 | G163: 前 | H163: 9 | I163: =[1]主表!$K161*20 -> 4907.748107 | J163: =[1]主表!$M161 -> 160.3839251 | K163: =[1]主表!$L161 -> 160.3839251 | L163: 1 | M163: =[1]主表!$N161 -> 0 | N163: =[1]主表!$F161 -> 8019 | O163: 32 | P163: 4 | Q163: 16 | R163: 4 | S163: 131.6
A164: 160 | B164: 160 | C164: 6 | D164: 16 | E164: 10 | F164: 合体期 | G164: 前 | H164: 10 | I164: =[1]主表!$K162*20 -> 5257.114212 | J164: =[1]主表!$M162 -> 171.4276373 | K164: =[1]主表!$L162 -> 171.4276373 | L164: 1 | M164: =[1]主表!$N162 -> 102.85 | N164: =[1]主表!$F162 -> 8571 | O164: 32 | P164: 4 | Q164: 16 | R164: 4 | S164: 131.8
A165: 161 | B165: 161 | C165: 6 | D165: 17 | E165: 1 | F165: 合体期 | G165: 中 | H165: 1 | I165: =[1]主表!$K163*20 -> 5372.488788 | J165: =[1]主表!$M163 -> 174.8098304 | K165: =[1]主表!$L163 -> 174.8098304 | L165: 1 | M165: =[1]主表!$N163 -> 104.88 | N165: =[1]主表!$F163 -> 8740 | O165: 33 | P165: 4 | Q165: 17 | R165: 4 | S165: 132
A166: 162 | B166: 162 | C166: 6 | D166: 17 | E166: 2 | F166: 合体期 | G166: 中 | H166: 2 | I166: =[1]主表!$K164*20 -> 5491.608325 | J166: =[1]主表!$M164 -> 178.2989716 | K166: =[1]主表!$L164 -> 178.2989716 | L166: 1 | M166: =[1]主表!$N164 -> 106.98 | N166: =[1]主表!$F164 -> 8915 | O166: 33 | P166: 4 | Q166: 17 | R166: 4 | S166: 132.2
A167: 163 | B167: 163 | C167: 6 | D167: 17 | E167: 3 | F167: 合体期 | G167: 中 | H167: 3 | I167: =[1]主表!$K165*20 -> 5611.761053 | J167: =[1]主表!$M165 -> 181.8065136 | K167: =[1]主表!$L165 -> 181.8065136 | L167: 1 | M167: =[1]主表!$N165 -> 109.08 | N167: =[1]主表!$F165 -> 9090 | O167: 33 | P167: 4 | Q167: 17 | R167: 4 | S167: 132.4
A168: 164 | B168: 164 | C168: 6 | D168: 17 | E168: 4 | F168: 合体期 | G168: 中 | H168: 4 | I168: =[1]主表!$K166*20 -> 5732.950651 | J168: =[1]主表!$M166 -> 185.3324564 | K168: =[1]主表!$L166 -> 185.3324564 | L168: 1 | M168: =[1]主表!$N166 -> 111.2 | N168: =[1]主表!$F166 -> 9267 | O168: 33 | P168: 4 | Q168: 17 | R168: 4 | S168: 132.6
A169: 165 | B169: 165 | C169: 6 | D169: 17 | E169: 5 | F169: 合体期 | G169: 中 | H169: 5 | I169: =[1]主表!$K167*20 -> 5857.968981 | J169: =[1]主表!$M167 -> 188.9667413 | K169: =[1]主表!$L167 -> 188.9667413 | L169: 1 | M169: =[1]主表!$N167 -> 113.38 | N169: =[1]主表!$F167 -> 9448 | O169: 33 | P169: 4 | Q169: 17 | R169: 4 | S169: 132.8
A170: 166 | B170: 166 | C170: 6 | D170: 17 | E170: 6 | F170: 合体期 | G170: 中 | H170: 6 | I170: =[1]主表!$K168*20 -> 5986.863696 | J170: =[1]主表!$M168 -> 192.7102048 | K170: =[1]主表!$L168 -> 192.7102048 | L170: 1 | M170: =[1]主表!$N168 -> 115.63 | N170: =[1]主表!$F168 -> 9636 | O170: 34 | P170: 4 | Q170: 17 | R170: 4 | S170: 133
A171: 167 | B171: 167 | C171: 6 | D171: 17 | E171: 7 | F171: 合体期 | G171: 中 | H171: 7 | I171: =[1]主表!$K169*20 -> 6116.865137 | J171: =[1]主表!$M169 -> 196.4731843 | K171: =[1]主表!$L169 -> 196.4731843 | L171: 1 | M171: =[1]主表!$N169 -> 117.89 | N171: =[1]主表!$F169 -> 9824 | O171: 34 | P171: 4 | Q171: 17 | R171: 4 | S171: 133.2
A172: 168 | B172: 168 | C172: 6 | D172: 17 | E172: 8 | F172: 合体期 | G172: 中 | H172: 8 | I172: =[1]主表!$K170*20 -> 6250.809473 | J172: =[1]主表!$M170 -> 200.3464575 | K172: =[1]主表!$L170 -> 200.3464575 | L172: 1 | M172: =[1]主表!$N170 -> 120.2 | N172: =[1]主表!$F170 -> 10017 | O172: 34 | P172: 4 | Q172: 17 | R172: 4 | S172: 133.4
A173: 169 | B173: 169 | C173: 6 | D173: 17 | E173: 9 | F173: 合体期 | G173: 中 | H173: 9 | I173: =[1]主表!$K171*20 -> 6385.89788 | J173: =[1]主表!$M171 -> 204.2398043 | K173: =[1]主表!$L171 -> 204.2398043 | L173: 1 | M173: =[1]主表!$N171 -> 122.54 | N173: =[1]主表!$F171 -> 10212 | O173: 34 | P173: 4 | Q173: 17 | R173: 4 | S173: 133.6
A174: 170 | B174: 170 | C174: 6 | D174: 17 | E174: 10 | F174: 合体期 | G174: 中 | H174: 10 | I174: =[1]主表!$K172*20 -> 6842.660503 | J174: =[1]主表!$M172 -> 218.382782 | K174: =[1]主表!$L172 -> 218.382782 | L174: 1 | M174: =[1]主表!$N172 -> 152.87 | N174: =[1]主表!$F172 -> 10919 | O174: 34 | P174: 4 | Q174: 17 | R174: 4 | S174: 133.8
A175: 171 | B175: 171 | C175: 6 | D175: 18 | E175: 1 | F175: 合体期 | G175: 后 | H175: 1 | I175: =[1]主表!$K173*20 -> 6990.341602 | J175: =[1]主表!$M173 -> 222.622344 | K175: =[1]主表!$L173 -> 222.622344 | L175: 1 | M175: =[1]主表!$N173 -> 155.83 | N175: =[1]主表!$F173 -> 11131 | O175: 35 | P175: 4 | Q175: 18 | R175: 4 | S175: 134
A176: 172 | B176: 172 | C176: 6 | D176: 18 | E176: 2 | F176: 合体期 | G176: 后 | H176: 2 | I176: =[1]主表!$K174*20 -> 7142.163826 | J176: =[1]主表!$M174 -> 226.9755453 | K176: =[1]主表!$L174 -> 226.9755453 | L176: 1 | M176: =[1]主表!$N174 -> 158.89 | N176: =[1]主表!$F174 -> 11349 | O176: 35 | P176: 4 | Q176: 18 | R176: 4 | S176: 134.2
A177: 173 | B177: 173 | C177: 6 | D177: 18 | E177: 3 | F177: 合体期 | G177: 后 | H177: 3 | I177: =[1]主表!$K175*20 -> 7298.17628 | J177: =[1]主表!$M175 -> 231.4432224 | K177: =[1]主表!$L175 -> 231.4432224 | L177: 1 | M177: =[1]主表!$N175 -> 162.01 | N177: =[1]主表!$F175 -> 11572 | O177: 35 | P177: 4 | Q177: 18 | R177: 4 | S177: 134.4
A178: 174 | B178: 174 | C178: 6 | D178: 18 | E178: 4 | F178: 合体期 | G178: 后 | H178: 4 | I178: =[1]主表!$K176*20 -> 7455.50685 | J178: =[1]主表!$M176 -> 235.9337611 | K178: =[1]主表!$L176 -> 235.9337611 | L178: 1 | M178: =[1]主表!$N176 -> 165.16 | N178: =[1]主表!$F176 -> 11797 | O178: 35 | P178: 4 | Q178: 18 | R178: 4 | S178: 134.6
A179: 175 | B179: 175 | C179: 6 | D179: 18 | E179: 5 | F179: 合体期 | G179: 后 | H179: 5 | I179: =[1]主表!$K177*20 -> 7617.096538 | J179: =[1]主表!$M177 -> 240.5398907 | K179: =[1]主表!$L177 -> 240.5398907 | L179: 1 | M179: =[1]主表!$N177 -> 168.38 | N179: =[1]主表!$F177 -> 12027 | O179: 35 | P179: 4 | Q179: 18 | R179: 4 | S179: 134.8
A180: 176 | B180: 176 | C180: 6 | D180: 18 | E180: 6 | F180: 合体期 | G180: 后 | H180: 6 | I180: =[1]主表!$K178*20 -> 7782.995004 | J180: =[1]主表!$M178 -> 245.2624476 | K180: =[1]主表!$L178 -> 245.2624476 | L180: 1 | M180: =[1]主表!$N178 -> 171.68 | N180: =[1]主表!$F178 -> 12263 | O180: 36 | P180: 4 | Q180: 18 | R180: 4 | S180: 135
A181: 177 | B181: 177 | C181: 6 | D181: 18 | E181: 7 | F181: 合体期 | G181: 后 | H181: 7 | I181: =[1]主表!$K179*20 -> 7950.285606 | J181: =[1]主表!$M179 -> 250.0089813 | K181: =[1]主表!$L179 -> 250.0089813 | L181: 1 | M181: =[1]主表!$N179 -> 175 | N181: =[1]主表!$F179 -> 12500 | O181: 36 | P181: 4 | Q181: 18 | R181: 4 | S181: 135.2
A182: 178 | B182: 178 | C182: 6 | D182: 18 | E182: 8 | F182: 合体期 | G182: 后 | H182: 8 | I182: =[1]主表!$K180*20 -> 8121.954769 | J182: =[1]主表!$M180 -> 254.8730576 | K182: =[1]主表!$L180 -> 254.8730576 | L182: 1 | M182: =[1]主表!$N180 -> 178.42 | N182: =[1]主表!$F180 -> 12744 | O182: 36 | P182: 4 | Q182: 18 | R182: 4 | S182: 135.4
A183: 179 | B183: 179 | C183: 6 | D183: 18 | E183: 9 | F183: 合体期 | G183: 后 | H183: 9 | I183: =[1]主表!$K181*20 -> 8298.052709 | J183: =[1]主表!$M181 -> 259.8555128 | K183: =[1]主表!$L181 -> 259.8555128 | L183: 1 | M183: =[1]主表!$N181 -> 181.9 | N183: =[1]主表!$F181 -> 12993 | O183: 36 | P183: 4 | Q183: 18 | R183: 4 | S183: 135.6
A184: 180 | B184: 180 | C184: 6 | D184: 18 | E184: 10 | F184: 合体期 | G184: 后 | H184: 10 | I184: =[1]主表!$K182*20 -> 9439.440853 | J184: =[1]主表!$M182 -> 294.9825267 | K184: =[1]主表!$L182 -> 294.9825267 | L184: 1 | M184: =[1]主表!$N182 -> 294.98 | N184: =[1]主表!$F182 -> 14749 | O184: 36 | P184: 4 | Q184: 18 | R184: 4 | S184: 135.8
A185: 181 | B185: 181 | C185: 7 | D185: 19 | E185: 1 | F185: 大乘期 | G185: 前 | H185: 1 | I185: =[1]主表!$K183*20 -> 9652.710463 | J185: =[1]主表!$M183 -> 301.0200768 | K185: =[1]主表!$L183 -> 301.0200768 | L185: 1 | M185: =[1]主表!$N183 -> 301.02 | N185: =[1]主表!$F183 -> 15051 | O185: 37 | P185: 4 | Q185: 19 | R185: 4 | S185: 136
A186: 182 | B186: 182 | C186: 7 | D186: 19 | E186: 2 | F186: 大乘期 | G186: 前 | H186: 2 | I186: =[1]主表!$K184*20 -> 9867.984141 | J186: =[1]主表!$M184 -> 307.0949421 | K186: =[1]主表!$L184 -> 307.0949421 | L186: 1 | M186: =[1]主表!$N184 -> 307.1 | N186: =[1]主表!$F184 -> 15355 | O186: 37 | P186: 4 | Q186: 19 | R186: 4 | S186: 136.2
A187: 183 | B187: 183 | C187: 7 | D187: 19 | E187: 3 | F187: 大乘期 | G187: 前 | H187: 3 | I187: =[1]主表!$K185*20 -> 10091.40021 | J187: =[1]主表!$M185 -> 313.3975221 | K187: =[1]主表!$L185 -> 313.3975221 | L187: 1 | M187: =[1]主表!$N185 -> 313.4 | N187: =[1]主表!$F185 -> 15670 | O187: 37 | P187: 4 | Q187: 19 | R187: 4 | S187: 136.4
A188: 184 | B188: 184 | C188: 7 | D188: 19 | E188: 4 | F188: 大乘期 | G188: 前 | H188: 4 | I188: =[1]主表!$K186*20 -> 10316.90698 | J188: =[1]主表!$M186 -> 319.7388525 | K188: =[1]主表!$L186 -> 319.7388525 | L188: 1 | M188: =[1]主表!$N186 -> 319.74 | N188: =[1]主表!$F186 -> 15987 | O188: 37 | P188: 4 | Q188: 19 | R188: 4 | S188: 136.6
A189: 185 | B189: 185 | C189: 7 | D189: 19 | E189: 5 | F189: 大乘期 | G189: 前 | H189: 5 | I189: =[1]主表!$K187*20 -> 10547.6135 | J189: =[1]主表!$M187 -> 326.2148507 | K189: =[1]主表!$L187 -> 326.2148507 | L189: 1 | M189: =[1]主表!$N187 -> 326.22 | N189: =[1]主表!$F187 -> 16311 | O189: 37 | P189: 4 | Q189: 19 | R189: 4 | S189: 136.8
A190: 186 | B190: 186 | C190: 7 | D190: 19 | E190: 6 | F190: 大乘期 | G190: 前 | H190: 6 | I190: =[1]主表!$K188*20 -> 10787.31517 | J190: =[1]主表!$M188 -> 332.9418263 | K190: =[1]主表!$L188 -> 332.9418263 | L190: 1 | M190: =[1]主表!$N188 -> 332.94 | N190: =[1]主表!$F188 -> 16647 | O190: 38 | P190: 4 | Q190: 19 | R190: 4 | S190: 137
A191: 187 | B191: 187 | C191: 7 | D191: 19 | E191: 7 | F191: 大乘期 | G191: 前 | H191: 7 | I191: =[1]主表!$K189*20 -> 11032.47925 | J191: =[1]主表!$M189 -> 339.8094224 | K191: =[1]主表!$L189 -> 339.8094224 | L191: 1 | M191: =[1]主表!$N189 -> 339.8 | N191: =[1]主表!$F189 -> 16990 | O191: 38 | P191: 4 | Q191: 19 | R191: 4 | S191: 137.2
A192: 188 | B192: 188 | C192: 7 | D192: 19 | E192: 8 | F192: 大乘期 | G192: 前 | H192: 8 | I192: =[1]主表!$K190*20 -> 11283.17213 | J192: =[1]主表!$M190 -> 346.8188155 | K192: =[1]主表!$L190 -> 346.8188155 | L192: 1 | M192: =[1]主表!$N190 -> 346.82 | N192: =[1]主表!$F190 -> 17341 | O192: 38 | P192: 4 | Q192: 19 | R192: 4 | S192: 137.4
A193: 189 | B193: 189 | C193: 7 | D193: 19 | E193: 9 | F193: 大乘期 | G193: 前 | H193: 9 | I193: =[1]主表!$K191*20 -> 11539.46053 | J193: =[1]主表!$M191 -> 353.9711819 | K193: =[1]主表!$L191 -> 353.9711819 | L193: 1 | M193: =[1]主表!$N191 -> 353.98 | N193: =[1]主表!$F191 -> 17699 | O193: 38 | P193: 4 | Q193: 19 | R193: 4 | S193: 137.6
A194: 190 | B194: 190 | C194: 7 | D194: 19 | E194: 10 | F194: 大乘期 | G194: 前 | H194: 10 | I194: =[1]主表!$K192*20 -> 12373.73676 | J194: =[1]主表!$M192 -> 378.78786 | K194: =[1]主表!$L192 -> 378.78786 | L194: 1 | M194: =[1]主表!$N192 -> 416.66 | N194: =[1]主表!$F192 -> 18939 | O194: 38 | P194: 4 | Q194: 19 | R194: 4 | S194: 137.8
A195: 191 | B195: 191 | C195: 7 | D195: 20 | E195: 1 | F195: 大乘期 | G195: 中 | H195: 1 | I195: =[1]主表!$K193*20 -> 12654.53333 | J195: =[1]主表!$M193 -> 386.5947045 | K195: =[1]主表!$L193 -> 386.5947045 | L195: 1 | M195: =[1]主表!$N193 -> 425.26 | N195: =[1]主表!$F193 -> 19330 | O195: 39 | P195: 4 | Q195: 20 | R195: 4 | S195: 138
A196: 192 | B196: 192 | C196: 7 | D196: 20 | E196: 2 | F196: 大乘期 | G196: 中 | H196: 2 | I196: =[1]主表!$K194*20 -> 12938.01714 | J196: =[1]主表!$M194 -> 394.4517421 | K196: =[1]主表!$L194 -> 394.4517421 | L196: 1 | M196: =[1]主表!$N194 -> 433.91 | N196: =[1]主表!$F194 -> 19723 | O196: 39 | P196: 4 | Q196: 20 | R196: 4 | S196: 138.2
A197: 193 | B197: 193 | C197: 7 | D197: 20 | E197: 3 | F197: 大乘期 | G197: 中 | H197: 3 | I197: =[1]主表!$K195*20 -> 13230.70942 | J197: =[1]主表!$M195 -> 402.5570816 | K197: =[1]主表!$L195 -> 402.5570816 | L197: 1 | M197: =[1]主表!$N195 -> 442.82 | N197: =[1]主表!$F195 -> 20128 | O197: 39 | P197: 4 | Q197: 20 | R197: 4 | S197: 138.4
A198: 194 | B198: 194 | C198: 7 | D198: 20 | E198: =H198 -> 4 | F198: 大乘期 | G198: 中 | H198: 4 | I198: =[1]主表!$K196*20 -> 13529.46219 | J198: =[1]主表!$M196 -> 410.8136292 | K198: =[1]主表!$L196 -> 410.8136292 | L198: 1 | M198: =[1]主表!$N196 -> 451.9 | N198: =[1]主表!$F196 -> 20541 | O198: 39 | P198: 4 | Q198: 20 | R198: 4 | S198: 138.6
A199: 195 | B199: 195 | C199: 7 | D199: 20 | E199: 5 | F199: 大乘期 | G199: 中 | H199: 5 | I199: =[1]主表!$K197*20 -> 13834.34452 | J199: =[1]主表!$M197 -> 419.2225613 | K199: =[1]主表!$L197 -> 419.2225613 | L199: 1 | M199: =[1]主表!$N197 -> 461.14 | N199: =[1]主表!$F197 -> 20961 | O199: 39 | P199: 4 | Q199: 20 | R199: 4 | S199: 138.8
A200: 196 | B200: 196 | C200: 7 | D200: 20 | E200: 6 | F200: 大乘期 | G200: 中 | H200: 6 | I200: =[1]主表!$K198*20 -> 14145.4258 | J200: =[1]主表!$M198 -> 427.7850544 | K200: =[1]主表!$L198 -> 427.7850544 | L200: 1 | M200: =[1]主表!$N198 -> 470.56 | N200: =[1]主表!$F198 -> 21389 | O200: 40 | P200: 4 | Q200: 20 | R200: 4 | S200: 139
A201: 197 | B201: 197 | C201: 7 | D201: 20 | E201: 7 | F201: 大乘期 | G201: 中 | H201: 7 | I201: =[1]主表!$K199*20 -> 14466.10968 | J201: =[1]主表!$M199 -> 436.6029077 | K201: =[1]主表!$L199 -> 436.6029077 | L201: 1 | M201: =[1]主表!$N199 -> 480.26 | N201: =[1]主表!$F199 -> 21830 | O201: 40 | P201: 4 | Q201: 20 | R201: 4 | S201: 139.2
... 103 more rows
